,Portfolio,Expense Area,Cost Centre,Expense Type,Account Code,Amount,Supplier Name,SupplierId,Pay Date,Transaction No.
INSERTED DETAIL,Resources & Corporate Governance ,Domestic Waste Collection,WWC00,Materials,0303,117.60,Arco Limited,100015,27/03/2014,10199305
INSERTED DETAIL,Resources & Corporate Governance ,Toilet Cleaning,WBC01,Personal Protective Clothing,0340,6.24,Arco Limited,100015,27/03/2014,10199305
INSERTED DETAIL,Resources & Corporate Governance ,Grounds Maintenance,WGM00,Personal Protective Clothing,0340,65.81,Arco Limited,100015,27/03/2014,10199305
INSERTED DETAIL,Resources & Corporate Governance ,Highways,WHG00,Personal Protective Clothing,0340,9.40,Arco Limited,100015,27/03/2014,10199305
INSERTED DETAIL,Resources & Corporate Governance,Housing Maintenance,WHM00,Personal Protective Clothing,0340,344.51,Arco Limited,100015,27/03/2014,10199305
INSERTED DETAIL,Resources & Corporate Governance ,Street Cleansing,WSC00,Personal Protective Clothing,0340,75.21,Arco Limited,100015,27/03/2014,10199305
INSERTED DETAIL,Resources & Corporate Governance ,Garage Internal,WVR01,Personal Protective Clothing,0340,12.54,Arco Limited,100015,27/03/2014,10199305
INSERTED DETAIL,Resources & Corporate Governance ,Domestic Waste Collection,WWC00,Personal Protective Clothing,0340,131.61,Arco Limited,100015,27/03/2014,10199305
INSERTED DETAIL,Resources & Corporate Governance ,Trade Waste Collection,WWC01,Personal Protective Clothing,0340,12.54,Arco Limited,100015,27/03/2014,10199305
INSERTED DETAIL,Resources & Corporate Governance ,Street Cleansing,WSC00,Materials,0303,251.76,Arco Limited,100015,27/03/2014,10199719
INSERTED DETAIL,Resources & Corporate Governance ,WSU Depot,WDP00,Messing Facilities,0332,390.80,Arco Limited,100015,27/03/2014,10199719
INSERTED DETAIL,Housing Revenue Account ,Repairs and Maintenance - Void works,UMR09,R&M External Contractors,0100,485.76,AWM Electrical Contractors Ltd,100051,06/03/2014,10198535
INSERTED DETAIL,Housing Revenue Account ,Unplanned Maintenance and Repair,UMR00,R&M External Contractors,0100,1391.46,AWM Electrical Contractors Ltd,100051,06/03/2014,10198537
INSERTED DETAIL,Capital Programme ,Rewiring,HCE20,Capital Contract Payments,5000,1613.00,AWM Electrical Contractors Ltd,100051,06/03/2014,10198537
INSERTED DETAIL,Housing Revenue Account ,Unplanned Maintenance and Repair,UMR00,R&M External Contractors,0100,4151.19,AWM Electrical Contractors Ltd,100051,06/03/2014,10198716
INSERTED DETAIL,Housing Revenue Account ,Unplanned Maintenance and Repair,UMR00,R&M External Contractors,0100,1064.05,AWM Electrical Contractors Ltd,100051,06/03/2014,10198718
INSERTED DETAIL,Housing Revenue Account ,Unplanned Maintenance and Repair,UMR00,R&M External Contractors,0100,1658.19,AWM Electrical Contractors Ltd,100051,13/03/2014,10198995
INSERTED DETAIL,Housing Revenue Account ,Repairs and Maintenance - Void works,UMR09,R&M External Contractors,0100,480.09,AWM Electrical Contractors Ltd,100051,20/03/2014,10198999
INSERTED DETAIL,Housing Revenue Account ,Unplanned Maintenance and Repair,UMR00,R&M External Contractors,0100,1492.31,AWM Electrical Contractors Ltd,100051,13/03/2014,10199052
INSERTED DETAIL,Housing Revenue Account ,Unplanned Maintenance and Repair,UMR00,R&M External Contractors,0100,1551.48,AWM Electrical Contractors Ltd,100051,13/03/2014,10199057
INSERTED DETAIL,Housing Revenue Account ,Repairs and Maintenance - Void works,UMR09,R&M External Contractors,0100,1271.87,AWM Electrical Contractors Ltd,100051,20/03/2014,10199058
INSERTED DETAIL,Housing Revenue Account ,Repairs and Maintenance - Void works,UMR09,R&M External Contractors,0100,610.26,AWM Electrical Contractors Ltd,100051,20/03/2014,10199059
INSERTED DETAIL,Housing Revenue Account ,Unplanned Maintenance and Repair,UMR00,R&M External Contractors,0100,851.14,AWM Electrical Contractors Ltd,100051,20/03/2014,10199479
INSERTED DETAIL,Housing Revenue Account ,Unplanned Maintenance and Repair,UMR00,R&M External Contractors,0100,2672.12,AWM Electrical Contractors Ltd,100051,20/03/2014,10199481
INSERTED DETAIL,Housing Revenue Account ,Unplanned Maintenance and Repair,UMR00,R&M External Contractors,0100,1829.84,AWM Electrical Contractors Ltd,100051,27/03/2014,10199798
INSERTED DETAIL,Housing Revenue Account ,Repairs and Maintenance - Void works,UMR09,R&M External Contractors,0100,143.99,AWM Electrical Contractors Ltd,100051,27/03/2014,10199798
INSERTED DETAIL,Sustainable Inclusive Communities,Woodside Park,TVR00,R&M External Contractors,0100,17.02,AWM Electrical Contractors Ltd,100051,27/03/2014,10199800
INSERTED DETAIL,Housing Revenue Account ,Unplanned Maintenance and Repair,UMR00,R&M External Contractors,0100,1437.45,AWM Electrical Contractors Ltd,100051,27/03/2014,10199800
INSERTED DETAIL,Housing Revenue Account ,Unplanned Maintenance and Repair,UMR00,R&M External Contractors,0100,978.51,AWM Electrical Contractors Ltd,100051,27/03/2014,10199804
INSERTED DETAIL,Resources & Corporate Governance,Corporate Property R&M,CPA01,R&M External Contractors,0100,3290.63,Adt Fire & Security plc,100070,27/03/2014,10199878
INSERTED DETAIL,Resources & Corporate Governance,Corporate Property R&M,CPA01,R&M External Contractors,0100,4842.47,Adt Fire & Security plc,100070,27/03/2014,10199879
INSERTED DETAIL,Resources & Corporate Governance ,Maintenance of Customer Services Systems,CIS21,Software Maintenance,0374,-811.06,Albany Software Ltd,100084,06/02/2013,10180094
INSERTED DETAIL,Capital Programme ,Kitchen Modifications,HIK10,Capital Contract Payments,5000,9191.44,A C E Carpentry & Joinery Contractors Ltd,100085,06/03/2014,10198288
INSERTED DETAIL,Capital Programme ,Kitchen Modifications,HIK10,Capital Contract Payments,5000,9191.44,A C E Carpentry & Joinery Contractors Ltd,100085,06/03/2014,10198606
INSERTED DETAIL,Housing Revenue Account ,Unplanned Maintenance and Repair,UMR00,R&M External Contractors,0100,2166.00,A C E Carpentry & Joinery Contractors Ltd,100085,06/03/2014,10198715
INSERTED DETAIL,Capital Programme ,Kitchen Modifications,HIK10,Capital Contract Payments,5000,2025.00,A C E Carpentry & Joinery Contractors Ltd,100085,06/03/2014,10198715
INSERTED DETAIL,Capital Programme ,Kitchen Modifications,HIK10,Capital Contract Payments,5000,6893.58,A C E Carpentry & Joinery Contractors Ltd,100085,13/03/2014,10199054
INSERTED DETAIL,Capital Programme ,Kitchen Modifications,HIK10,Capital Contract Payments,5000,1407.00,A C E Carpentry & Joinery Contractors Ltd,100085,20/03/2014,10199273
INSERTED DETAIL,Capital Programme ,Kitchen Modifications,HIK10,Capital Contract Payments,5000,1020.00,A C E Carpentry & Joinery Contractors Ltd,100085,20/03/2014,10199275
INSERTED DETAIL,Capital Programme ,Kitchen Modifications,HIK10,Capital Contract Payments,5000,2380.00,A C E Carpentry & Joinery Contractors Ltd,100085,27/03/2014,10200032
INSERTED DETAIL,Resources & Corporate Governance ,Grounds Maintenance,WGM00,Materials,0303,1976.25,Banks Amenity Products Ltd,100133,27/03/2014,10199812
INSERTED DETAIL,Resources & Corporate Governance ,Highways,WHG00,Materials,0303,900.00,Aggregate Industries UK Limited,100134,13/03/2014,10194995
INSERTED DETAIL,Resources & Corporate Governance ,Highways,WHG00,Materials,0303,512.28,Aggregate Industries UK Limited,100134,06/03/2014,10198386
INSERTED DETAIL,Resources & Corporate Governance ,Council Tax and NNDR Collection,CTX01,External Contractor & Operator,0742,303.50,Bristow & Sutor,100159,20/03/2014,10199564
INSERTED DETAIL,Housing Revenue Account ,Sheltered Housing,AGP00,Telephone Expenses,0371,4330.37,British Telecommunications Plc,100161,27/03/2014,10198432
INSERTED DETAIL,Housing Revenue Account ,Multi-Storey Flats,MSF00,Telephone Expenses,0371,79.68,British Telecommunications Plc,100161,27/03/2014,10198432
INSERTED DETAIL,Resources & Corporate Governance ,Town Hall,OFF00,Telephone Expenses,0371,57.00,British Telecommunications Plc,100161,27/03/2014,10198432
INSERTED DETAIL,Sustainable Inclusive Communities,Woodside Park,TVR00,Telephone Expenses,0371,79.17,British Telecommunications Plc,100161,27/03/2014,10198432
INSERTED DETAIL,Sustainable Inclusive Communities,CL Grants,CGS00,Grants To Voluntary Organisations,0720,2500.00,Benn Partnership Centre,100235,06/03/2014,10198621
INSERTED DETAIL,Housing Revenue Account ,Unplanned Maintenance and Repair,UMR00,R&M External Contractors,0100,1437.87,Barron McCann Ltd,100248,20/03/2014,10199503
INSERTED DETAIL,Housing Revenue Account ,Unplanned Maintenance and Repair,UMR00,R&M External Contractors,0100,968.20,Barron McCann Ltd,100248,27/03/2014,10200033
INSERTED DETAIL,Resources & Corporate Governance,Housing Maintenance,WHM00,Vehicle Repair and Maintenance,0200,625.00,Charles Watts Engineering Ltd,100302,06/03/2014,10198756
INSERTED DETAIL,Resources & Corporate Governance,Corporate Property R&M,CPA01,R&M External Contractors,0100,763.16,Chillaire Service & Maintenance Ltd,100305,13/03/2014,10198814
INSERTED DETAIL,Resources & Corporate Governance ,IT Procurement,CMP00,IT Capital Expenditure,5025,7500.00,Stone Computers,100390,06/03/2014,10198749
INSERTED DETAIL,Resources & Corporate Governance ,Maintenance of Customer Services Systems,CIS21,Software Maintenance,0374,16727.34,Capita Business Services Ltd,100403,20/03/2014,10199187
INSERTED DETAIL,Economy Development & Culture,Economic Development General,ECD00,Development Activities,0450,750.00,Coventry & Warwickshire Chamber Of Commerce,100412,20/03/2014,10199499
INSERTED DETAIL,Economy Development & Culture,Economic Development General,ECD00,Development Activities,0450,2000.00,Coventry & Warwickshire Chamber Of Commerce,100412,20/03/2014,10199557
INSERTED DETAIL,Sustainable Environment ,Clinical Waste,REF04,External Contractor & Operator,0742,547.69,OCS Group UK Ltd t/a Cannon,100436,13/03/2014,10198837
INSERTED DETAIL,Sustainable Environment ,Clinical Waste,REF04,External Contractor & Operator,0742,577.80,OCS Group UK Ltd t/a Cannon,100436,13/03/2014,10198911
INSERTED DETAIL,Economy Development & Culture,AGM Conservation/Documentation,AGM01,Other Miscellaneous Expenses,0444,565.00,C'Art - Art Transport Ltd,100487,06/03/2014,10198654
INSERTED DETAIL,Economy Development & Culture,AGM Exhibitions/Outreach,AGM02,Other Miscellaneous Expenses,0444,530.00,C'Art - Art Transport Ltd,100487,13/03/2014,10199083
INSERTED DETAIL,Resources & Corporate Governance ,Domestic Waste Collection,WWC00,Vehicle Repair and Maintenance,0200,488.58,Dennis Eagle Ltd,100559,06/03/2014,10198696
INSERTED DETAIL,Resources & Corporate Governance ,Domestic Waste Collection,WWC00,Vehicle Repair and Maintenance,0200,304.13,Dennis Eagle Ltd,100559,27/03/2014,10199299
INSERTED DETAIL,Resources & Corporate Governance ,Trade Waste Collection,WWC01,Vehicle Repair and Maintenance,0200,114.49,Dennis Eagle Ltd,100559,27/03/2014,10199299
INSERTED DETAIL,Resources & Corporate Governance ,Domestic Waste Collection,WWC00,Vehicle Repair and Maintenance,0200,26.15,Dennis Eagle Ltd,100559,27/03/2014,10199710
INSERTED DETAIL,Resources & Corporate Governance ,Trade Waste Collection,WWC01,Vehicle Repair and Maintenance,0200,597.26,Dennis Eagle Ltd,100559,27/03/2014,10199710
INSERTED DETAIL,Capital Programme ,Purchase of Vehicles,VHC00,Miscellaneous Capital Expenditure,5020,705.00,Dennis Eagle Ltd,100559,27/03/2014,10199881
INSERTED DETAIL,Capital Programme ,Purchase of Vehicles,VHC00,Miscellaneous Capital Expenditure,5020,130080.00,Dennis Eagle Ltd,100559,27/03/2014,10199882
INSERTED DETAIL,Resources & Corporate Governance,Corporate Property R&M,CPA01,R&M External Contractors,0100,790.00,Dunchurch Services (Rugby) Ltd,100565,06/03/2014,10198612
INSERTED DETAIL,Housing Revenue Account ,Repairs and Maintenance - Void works,UMR09,R&M External Contractors,0100,1321.29,Dulux Decorator Centres,100597,13/03/2014,10199076
INSERTED DETAIL,Capital Programme ,Crematorium Project,BUR04,Capital Contract Payments,5000,3044.00,Europlants UK Ltd,100631,27/03/2014,10199922
INSERTED DETAIL,Resources & Corporate Governance ,WSU Depot,WDP00,Gas,0131,1086.14,ESPO,100641,13/03/2014,10199061
INSERTED DETAIL,Resources & Corporate Governance,Corporate Property Central Utilities,CPA02,Gas,0131,1927.53,ESPO,100641,20/03/2014,10199062
INSERTED DETAIL,Sustainable Environment,Crematorium,CRM00,Cleaning Materials,0171,37.23,ESPO,100641,13/03/2014,10199085
INSERTED DETAIL,Sustainable Environment,Crematorium,CRM00,New Equipment,0300,412.76,ESPO,100641,13/03/2014,10199085
INSERTED DETAIL,Sustainable Environment,Crematorium,CRM00,Stationery Supplies,0350,293.60,ESPO,100641,13/03/2014,10199085
INSERTED DETAIL,Housing Revenue Account ,Albert Square AP,AGP20,Gas,0131,1930.31,ESPO,100641,27/03/2014,10199253
INSERTED DETAIL,Housing Revenue Account ,Lesley Souter House AP,AGP16,Gas,0131,1304.98,ESPO,100641,27/03/2014,10199255
INSERTED DETAIL,Housing Revenue Account ,Tanser Court AP,AGP17,Gas,0131,1804.48,ESPO,100641,27/03/2014,10199258
INSERTED DETAIL,Resources & Corporate Governance,Corporate Property Central Utilities,CPA02,Gas,0131,1702.80,ESPO,100641,20/03/2014,10199354
INSERTED DETAIL,Resources & Corporate Governance ,WSU Depot,WDP00,Gas,0131,900.93,ESPO,100641,27/03/2014,10199356
INSERTED DETAIL,Resources & Corporate Governance,Corporate Property Central Utilities,CPA02,Gas,0131,2600.22,ESPO,100641,20/03/2014,10199357
INSERTED DETAIL,Sustainable Environment,Crematorium,CRM00,Gas,0131,8258.88,ESPO,100641,20/03/2014,10199358
INSERTED DETAIL,Sustainable Environment,Crematorium,CRM00,Gas,0131,427.48,ESPO,100641,20/03/2014,10199502
INSERTED DETAIL,Sustainable Environment,Crematorium,CRM00,Gas,0131,-8258.88,ESPO,100641,27/03/2014,10199655
INSERTED DETAIL,Housing Revenue Account ,Albert Square AP,AGP20,Gas,0131,1923.56,ESPO,100641,27/03/2014,10199887
INSERTED DETAIL,Housing Revenue Account ,Lesley Souter House AP,AGP16,Gas,0131,1354.48,ESPO,100641,27/03/2014,10199888
INSERTED DETAIL,Housing Revenue Account ,Tanser Court AP,AGP17,Gas,0131,1677.19,ESPO,100641,27/03/2014,10199889
INSERTED DETAIL,Resources & Corporate Governance,Corporate Property Central Utilities,CPA02,Gas,0131,2544.73,ESPO,100641,27/03/2014,10199898
INSERTED DETAIL,Resources & Corporate Governance,Housing Maintenance,WHM00,Agency Staff,0003,440.67,First Personnel Group Plc,100807,06/03/2014,10198682
INSERTED DETAIL,Resources & Corporate Governance,Housing Maintenance,WHM00,Agency Staff,0003,440.67,First Personnel Group Plc,100807,27/03/2014,10199739
INSERTED DETAIL,Resources & Corporate Governance ,Trade Waste Collection,WWC01,External Contractor & Operator,0742,1310.57,Container Services UK Limited,100811,27/03/2014,10199196
INSERTED DETAIL,Resources & Corporate Governance ,Domestic Waste Collection,WWC00,Vehicle Repair and Maintenance,0200,479.21,Ford & Slater,100817,27/03/2014,10199737
INSERTED DETAIL,Resources & Corporate Governance ,Garage Internal,WVR01,Materials,0303,680.00,Freight Transport Association,100830,27/03/2014,10199793
INSERTED DETAIL,Resources & Corporate Governance ,Town Hall,OFF00,Materials,0303,578.00,Greenham,100890,27/03/2014,10199641
INSERTED DETAIL,Economy Development & Culture,Art Gallery and Museum,AGM00,Other Consumables,0351,454.47,Greenham,100890,27/03/2014,10199840
INSERTED DETAIL,Resources & Corporate Governance ,Town Hall,OFF00,Materials,0303,578.00,Greenham,100890,27/03/2014,10199944
INSERTED DETAIL,Capital Programme ,Crematorium Project,BUR04,Capital Contract Payments,5000,544.20,Gemini CCS Ltd,100922,27/03/2014,10199910
INSERTED DETAIL,Resources & Corporate Governance ,Corporate Property Management,CPM00,Asset Management Expenses,0448,1264.28,Godfrey-Payton Chartered Surveyors,100937,06/03/2014,10198550
INSERTED DETAIL,Resources & Corporate Governance ,Corporate Property Management,CPM00,Asset Management Expenses,0448,750.00,Godfrey-Payton Chartered Surveyors,100937,27/03/2014,10199965
INSERTED DETAIL,Resources & Corporate Governance ,Grounds Maintenance,WGM00,Materials,0303,508.40,BHGS Ltd,100950,13/03/2014,10198925
INSERTED DETAIL,Resources & Corporate Governance ,Human Resources Centralised Services,RES31,Recruitment Expenses,0012,490.72,TMP (UK) LTD,100972,06/03/2014,10198339
INSERTED DETAIL,Resources & Corporate Governance,Corporate Property R&M,CPA01,R&M External Contractors,0100,532.50,ThyssenKrupp Elevator UK,100985,27/03/2014,10199147
INSERTED DETAIL,Housing Revenue Account ,Supervision and Management General,MAN00,Subscriptions,0421,6193.34,Housemark,101106,13/03/2014,10198377
INSERTED DETAIL,Resources & Corporate Governance,Central Business Support Services,CSS15,"Toners, cartridges and printer equipment",0311,496.47,IE Office Equipment Ltd,101114,27/03/2014,10199765
INSERTED DETAIL,Sustainable Environment,Regulatory Services,REG00,Subscriptions,0421,480.00,C.I.E.H,101121,27/03/2014,10199670
INSERTED DETAIL,Resources & Corporate Governance ,Street Cleansing,WSC00,Materials,0303,2100.00,Imperial Polythene Products Limited,101157,13/03/2014,10199229
INSERTED DETAIL,Resources & Corporate Governance ,Grounds Maintenance,WGM00,Materials,0303,4280.00,James Coles & Sons (Nurseries) Ltd,101165,06/03/2014,10198463
INSERTED DETAIL,Resources & Corporate Governance ,Grounds Maintenance,WGM00,Materials,0303,7825.50,James Coles & Sons (Nurseries) Ltd,101165,06/03/2014,10198464
INSERTED DETAIL,Resources & Corporate Governance ,Grounds Maintenance,WGM00,Materials,0303,726.25,James Coles & Sons (Nurseries) Ltd,101165,06/03/2014,10198465
INSERTED DETAIL,Resources & Corporate Governance ,Grounds Maintenance,WGM00,Materials,0303,3200.00,James Coles & Sons (Nurseries) Ltd,101165,27/03/2014,10199693
INSERTED DETAIL,Resources & Corporate Governance ,Grounds Maintenance,WGM00,Materials,0303,2790.00,James Coles & Sons (Nurseries) Ltd,101165,27/03/2014,10199694
INSERTED DETAIL,Resources & Corporate Governance ,Grounds Maintenance,WGM00,Materials,0303,3261.00,James Coles & Sons (Nurseries) Ltd,101165,27/03/2014,10200064
INSERTED DETAIL,Resources & Corporate Governance,Housing Maintenance,WHM00,External Contractor & Operator,0742,1354.68,Clews Recycling Limited,101213,20/03/2014,10197755
INSERTED DETAIL,Resources & Corporate Governance,Housing Maintenance,WHM00,External Contractor & Operator,0742,1210.20,Clews Recycling Limited,101213,20/03/2014,10197756
INSERTED DETAIL,Resources & Corporate Governance,Housing Maintenance,WHM00,External Contractor & Operator,0742,816.72,Clews Recycling Limited,101213,27/03/2014,10198156
INSERTED DETAIL,Resources & Corporate Governance,Housing Maintenance,WHM00,External Contractor & Operator,0742,1013.72,Clews Recycling Limited,101213,27/03/2014,10199143
INSERTED DETAIL,,User Balance Sheet Cost Centre,BSU,Revenue Section Agreements,9865,795.00,Long Lawford Parish Council,101228,13/03/2014,10198949
INSERTED DETAIL,Economy Development & Culture,Planning General/Income,PLN00,Consultancy Costs,0740,2184.95,L G S Ltd,101252,20/03/2014,10198966
INSERTED DETAIL,Resources & Corporate Governance,Housing Maintenance,WHM00,Materials,0303,456.90,Melbros Ltd,101291,06/03/2014,10196091
INSERTED DETAIL,Resources & Corporate Governance,Housing Maintenance,WHM00,Materials,0303,1239.00,Melbros Ltd,101291,13/03/2014,10196174
INSERTED DETAIL,Resources & Corporate Governance,Housing Maintenance,WHM00,Materials,0303,515.01,Melbros Ltd,101291,13/03/2014,10198314
INSERTED DETAIL,Resources & Corporate Governance,Housing Maintenance,WHM00,Materials,0303,497.01,Melbros Ltd,101291,13/03/2014,10198324
INSERTED DETAIL,Resources & Corporate Governance,Housing Maintenance,WHM00,Materials,0303,497.01,Melbros Ltd,101291,13/03/2014,10198809
INSERTED DETAIL,Resources & Corporate Governance,Housing Maintenance,WHM00,Materials,0303,725.20,Melbros Ltd,101291,20/03/2014,10199088
INSERTED DETAIL,Resources & Corporate Governance,Corporate Property R&M,CPA01,R&M External Contractors,0100,974.80,M W D Services Ltd,101293,27/03/2014,10199504
INSERTED DETAIL,Resources & Corporate Governance,Corporate Property R&M,CPA01,R&M External Contractors,0100,695.75,M W D Services Ltd,101293,27/03/2014,10200056
INSERTED DETAIL,Economy Development & Culture,Street Furniture,HIG01,External Contractor & Operator,0742,470.05,Midland Signs (Leicester) Ltd,101295,20/03/2014,10199527
INSERTED DETAIL,Resources & Corporate Governance ,Domestic Waste Collection,WWC00,Vehicle Repair and Maintenance,0200,1080.17,Mitchell Powersystems,101332,27/03/2014,10199533
INSERTED DETAIL,Resources & Corporate Governance ,Highways,WHG00,Vehicle Repair and Maintenance,0200,457.66,Noden Truck Centre Ltd,101368,27/03/2014,10199369
INSERTED DETAIL,Resources & Corporate Governance ,Grounds Maintenance,WGM00,Vehicle Repair and Maintenance,0200,827.64,Noden Truck Centre Ltd,101368,27/03/2014,10200067
INSERTED DETAIL,,Balance Sheet,BS,Car Loan Scheme,9261,8135.00,REDACTED PERSONAL DATA,101370,13/03/2014,10199166
INSERTED DETAIL,Resources & Corporate Governance ,Maintenance of Customer Services Systems,CIS21,Software Maintenance,0374,600.00,Ncc Services Limited,101374,13/03/2014,10199176
INSERTED DETAIL,Sustainable Inclusive Communities,CL Grants,CGS00,Grants To Voluntary Organisations,0720,2500.00,New Bilton Community Association,101389,06/03/2014,10198622
INSERTED DETAIL,Economy Development & Culture,Visitor Centre,VSC00,Events Tickets - Zero Rated,1405,648.47,National Express Ltd,101392,06/03/2014,10198768
INSERTED DETAIL,Capital Programme ,Disabled Facilities Grant,REN01,Capital Grants,5014,-956.82,Orbit Group Limited,101414,27/03/2014,10198252
INSERTED DETAIL,Capital Programme ,Disabled Facilities Grant,REN01,Capital Grants,5014,566.58,Orbit Group Limited,101414,27/03/2014,10199979
INSERTED DETAIL,Resources & Corporate Governance ,Street Cleansing,WSC00,Vehicle Running Costs,0201,165.00,Post Office Ltd,101429,20/03/2014,10199465
INSERTED DETAIL,Resources & Corporate Governance ,Domestic Waste Collection,WWC00,Vehicle Running Costs,0201,1406.00,Post Office Ltd,101429,20/03/2014,10199465
INSERTED DETAIL,Resources & Corporate Governance ,Trade Waste Collection,WWC01,Vehicle Running Costs,0201,930.00,Post Office Ltd,101429,20/03/2014,10199465
INSERTED DETAIL,Sustainable Environment ,Parks,PKS00,R&M External Contractors,0100,602.18,PJT Pumping Services,101438,27/03/2014,10199901
INSERTED DETAIL,Capital Programme ,Queen's Diamond Jubilee Leisure Centre Project,LEI03,Capital Contract Payments,5000,-588.75,E.ON,101479,06/01/2014,10196196
INSERTED DETAIL,Sustainable Environment ,Cemeteries General,CEM00,External Contractor & Operator,0742,550.00,Post To Post Fencing,101490,06/03/2014,10198503
INSERTED DETAIL,Sustainable Environment ,Parks,PKS00,External Contractor & Operator,0742,570.00,Post To Post Fencing,101490,06/03/2014,10198503
INSERTED DETAIL,Capital Programme ,Open Spaces Refurbishment,LEI08,Capital Contract Payments,5000,750.00,Post To Post Fencing,101490,06/03/2014,10198503
INSERTED DETAIL,Capital Programme ,Open Spaces Refurbishment,LEI08,Capital Contract Payments,5000,1161.00,Post To Post Fencing,101490,06/03/2014,10198630
INSERTED DETAIL,Capital Programme ,Bathroom Modifications,HIS01,Capital Contract Payments,5000,530.00,Reeds Plumbing & Heating Contractors Ltd,101504,13/03/2014,10198996
INSERTED DETAIL,Capital Programme ,Bathroom Modifications,HIS01,Capital Contract Payments,5000,26960.00,Reeds Plumbing & Heating Contractors Ltd,101504,27/03/2014,10199544
INSERTED DETAIL,Capital Programme ,Bathroom Modifications,HIS01,Capital Contract Payments,5000,33400.00,Reeds Plumbing & Heating Contractors Ltd,101504,27/03/2014,10199573
INSERTED DETAIL,Sustainable Environment ,Parks,PKS00,Internal Contractor,0743,811.13,Rugby Borough Council,101516,20/03/2014,10199065
INSERTED DETAIL,Economy Development & Culture,Art Gallery and Museum,AGM00,Internal Contractor,0743,503.83,Rugby Borough Council,101516,20/03/2014,10199360
INSERTED DETAIL,Economy Development & Culture,The Benn Hall,BHL00,Internal Contractor,0743,1874.25,Rugby Borough Council,101516,27/03/2014,10199986
INSERTED DETAIL,Housing Revenue Account ,Property Maintenance,MAN23,Agency Staff,0003,485.63,Rugby Recruitment Services Ltd,101521,13/03/2014,10198220
INSERTED DETAIL,Housing Revenue Account ,Property Maintenance,MAN23,Agency Staff,0003,479.15,Rugby Recruitment Services Ltd,101521,13/03/2014,10198221
INSERTED DETAIL,Housing Revenue Account ,Property Maintenance,MAN23,Agency Staff,0003,485.63,Rugby Recruitment Services Ltd,101521,13/03/2014,10198222
INSERTED DETAIL,Housing Revenue Account ,Property Maintenance,MAN23,Agency Staff,0003,485.63,Rugby Recruitment Services Ltd,101521,13/03/2014,10198223
INSERTED DETAIL,Housing Revenue Account ,Property Maintenance,MAN23,Agency Staff,0003,485.63,Rugby Recruitment Services Ltd,101521,13/03/2014,10198224
INSERTED DETAIL,Housing Revenue Account ,Property Maintenance,MAN23,Agency Staff,0003,446.78,Rugby Recruitment Services Ltd,101521,13/03/2014,10198824
INSERTED DETAIL,Housing Revenue Account ,Property Maintenance,MAN23,Agency Staff,0003,462.96,Rugby Recruitment Services Ltd,101521,13/03/2014,10198825
INSERTED DETAIL,Housing Revenue Account ,Property Maintenance,MAN23,Agency Staff,0003,494.17,Rugby Recruitment Services Ltd,101521,13/03/2014,10199077
INSERTED DETAIL,Housing Revenue Account ,Property Maintenance,MAN23,Agency Staff,0003,485.63,Rugby Recruitment Services Ltd,101521,20/03/2014,10199459
INSERTED DETAIL,Housing Revenue Account ,Property Maintenance,MAN23,Agency Staff,0003,456.49,Rugby Recruitment Services Ltd,101521,27/03/2014,10199791
INSERTED DETAIL,Economy Development & Culture,Car Parks General,CPK01,Postage & Distribution,0370,9.68,Royal Mail,101554,06/03/2014,10198246
INSERTED DETAIL,Resources & Corporate Governance,Central Business Support Services,CSS15,Postage & Distribution,0370,141.27,Royal Mail,101554,06/03/2014,10198246
INSERTED DETAIL,Resources & Corporate Governance ,Council Tax and NNDR Collection,CTX01,Postage & Distribution,0370,188.63,Royal Mail,101554,06/03/2014,10198246
INSERTED DETAIL,Economy Development & Culture,Decrim. of Car Parking on street parking,DPE02,Postage & Distribution,0370,38.72,Royal Mail,101554,06/03/2014,10198246
INSERTED DETAIL,Resources & Corporate Governance ,Electoral Registration,ERG00,Postage & Distribution,0370,0.47,Royal Mail,101554,06/03/2014,10198246
INSERTED DETAIL,Sustainable Inclusive Communities,Housing Benefit Administration,HBA00,Postage & Distribution,0370,38.89,Royal Mail,101554,06/03/2014,10198246
INSERTED DETAIL,Housing Revenue Account ,Supervision and Management General,MAN00,Postage & Distribution,0370,2.35,Royal Mail,101554,06/03/2014,10198246
INSERTED DETAIL,Economy Development & Culture,Planning General/Income,PLN00,Postage & Distribution,0370,64.66,Royal Mail,101554,06/03/2014,10198246
INSERTED DETAIL,Economy Development & Culture,Visitor Centre,VSC00,Postage & Distribution,0370,46.90,Royal Mail,101554,06/03/2014,10198246
INSERTED DETAIL,Resources & Corporate Governance ,General Administration,WAD00,Postage & Distribution,0370,4.70,Royal Mail,101554,06/03/2014,10198246
INSERTED DETAIL,Economy Development & Culture,Building Control Services,BCS00,Postage & Distribution,0370,0.26,Royal Mail,101554,06/03/2014,10198548
INSERTED DETAIL,Economy Development & Culture,Building Control Services Non-Fee Earning Account,BCS01,Postage & Distribution,0370,0.26,Royal Mail,101554,06/03/2014,10198548
INSERTED DETAIL,Economy Development & Culture,Building Regulation Fee Earning Account,BCS99,Postage & Distribution,0370,4.65,Royal Mail,101554,06/03/2014,10198548
INSERTED DETAIL,Economy Development & Culture,Car Parks General,CPK01,Postage & Distribution,0370,33.19,Royal Mail,101554,06/03/2014,10198548
INSERTED DETAIL,Resources & Corporate Governance,Central Business Support Services,CSS15,Postage & Distribution,0370,377.74,Royal Mail,101554,06/03/2014,10198548
INSERTED DETAIL,Resources & Corporate Governance ,Council Tax and NNDR Collection,CTX01,Postage & Distribution,0370,336.51,Royal Mail,101554,06/03/2014,10198548
INSERTED DETAIL,Economy Development & Culture,Decrim. of Car Parking on street parking,DPE02,Postage & Distribution,0370,132.77,Royal Mail,101554,06/03/2014,10198548
INSERTED DETAIL,Resources & Corporate Governance ,Electoral Registration,ERG00,Postage & Distribution,0370,10.59,Royal Mail,101554,06/03/2014,10198548
INSERTED DETAIL,Sustainable Inclusive Communities,Housing Benefit Administration,HBA00,Postage & Distribution,0370,172.89,Royal Mail,101554,06/03/2014,10198548
INSERTED DETAIL,Housing Revenue Account ,Supervision and Management General,MAN00,Postage & Distribution,0370,105.06,Royal Mail,101554,06/03/2014,10198548
INSERTED DETAIL,Economy Development & Culture,Planning General/Income,PLN00,Postage & Distribution,0370,274.51,Royal Mail,101554,06/03/2014,10198548
INSERTED DETAIL,Economy Development & Culture,Visitor Centre,VSC00,Postage & Distribution,0370,2.36,Royal Mail,101554,06/03/2014,10198548
INSERTED DETAIL,Resources & Corporate Governance ,General Administration,WAD00,Postage & Distribution,0370,11.34,Royal Mail,101554,06/03/2014,10198548
INSERTED DETAIL,Economy Development & Culture,Art Gallery and Museum,AGM00,Postage & Distribution,0370,37.07,Royal Mail,101554,27/03/2014,10199301
INSERTED DETAIL,Economy Development & Culture,Building Control Services,BCS00,Postage & Distribution,0370,0.66,Royal Mail,101554,27/03/2014,10199301
INSERTED DETAIL,Economy Development & Culture,Building Control Services Non-Fee Earning Account,BCS01,Postage & Distribution,0370,0.66,Royal Mail,101554,27/03/2014,10199301
INSERTED DETAIL,Economy Development & Culture,Building Regulation Fee Earning Account,BCS99,Postage & Distribution,0370,11.86,Royal Mail,101554,27/03/2014,10199301
INSERTED DETAIL,Economy Development & Culture,Car Parks General,CPK01,Postage & Distribution,0370,65.79,Royal Mail,101554,27/03/2014,10199301
INSERTED DETAIL,Resources & Corporate Governance,Central Business Support Services,CSS15,Postage & Distribution,0370,239.40,Royal Mail,101554,27/03/2014,10199301
INSERTED DETAIL,Resources & Corporate Governance ,Council Tax and NNDR Collection,CTX01,Postage & Distribution,0370,206.99,Royal Mail,101554,27/03/2014,10199301
INSERTED DETAIL,Economy Development & Culture,Decrim. of Car Parking on street parking,DPE02,Postage & Distribution,0370,263.14,Royal Mail,101554,27/03/2014,10199301
INSERTED DETAIL,Resources & Corporate Governance ,Electoral Registration,ERG00,Postage & Distribution,0370,11.61,Royal Mail,101554,27/03/2014,10199301
INSERTED DETAIL,Sustainable Inclusive Communities,Housing Benefit Administration,HBA00,Postage & Distribution,0370,221.99,Royal Mail,101554,27/03/2014,10199301
INSERTED DETAIL,Housing Revenue Account ,Supervision and Management General,MAN00,Postage & Distribution,0370,53.02,Royal Mail,101554,27/03/2014,10199301
INSERTED DETAIL,Economy Development & Culture,Planning General/Income,PLN00,Postage & Distribution,0370,165.14,Royal Mail,101554,27/03/2014,10199301
INSERTED DETAIL,Economy Development & Culture,Visitor Centre,VSC00,Postage & Distribution,0370,2.70,Royal Mail,101554,27/03/2014,10199301
INSERTED DETAIL,Resources & Corporate Governance ,General Administration,WAD00,Postage & Distribution,0370,9.75,Royal Mail,101554,27/03/2014,10199301
INSERTED DETAIL,Resources & Corporate Governance ,Electoral Registration,ERG00,Postage & Distribution,0370,539.72,Royal Mail,101554,27/03/2014,10199669
INSERTED DETAIL,Housing Revenue Account ,Lesley Souter House AP,AGP16,Water Services,0143,1623.28,Severn Trent Water Ltd,101610,06/03/2014,10198527
INSERTED DETAIL,Resources & Corporate Governance ,WSU Depot,WDP00,Water Services,0143,1125.92,Severn Trent Water Ltd,101610,13/03/2014,10198989
INSERTED DETAIL,Resources & Corporate Governance,Corporate Property Central Utilities,CPA02,Water Services,0143,771.45,Severn Trent Water Ltd,101610,20/03/2014,10199040
INSERTED DETAIL,Housing Revenue Account ,Dickinson Court AP,AGP03,Water Services,0143,569.80,Severn Trent Water Ltd,101610,13/03/2014,10199043
INSERTED DETAIL,Housing Revenue Account ,Albert Square AP,AGP20,Water Services,0143,1584.19,Severn Trent Water Ltd,101610,13/03/2014,10199148
INSERTED DETAIL,Housing Revenue Account ,Stretton Court AP,AGP13,Water Services,0143,692.45,Severn Trent Water Ltd,101610,13/03/2014,10199149
INSERTED DETAIL,Housing Revenue Account ,Tanser Court AP,AGP17,Water Services,0143,952.83,Severn Trent Water Ltd,101610,13/03/2014,10199159
INSERTED DETAIL,Resources & Corporate Governance,Corporate Property Central Utilities,CPA02,Water Services,0143,522.06,Severn Trent Water Ltd,101610,27/03/2014,10199919
INSERTED DETAIL,Resources & Corporate Governance ,Borough Elections,ELC00,Stationery Supplies,0350,1570.30,Shaw & Sons Ltd,101612,27/03/2014,10199175
INSERTED DETAIL,Capital Programme ,Disabled Facilities Grant,REN01,Capital Grants,5014,2027.00,Stannah Stairlifts Ltd,101623,13/03/2014,10198624
INSERTED DETAIL,Capital Programme ,Disabled Adaptations,HCR01,Capital Contract Payments,5000,695.00,Stannah Stairlifts Ltd,101623,13/03/2014,10199169
INSERTED DETAIL,Resources & Corporate Governance,Housing Maintenance,WHM00,External Contractor & Operator,0742,451.57,Symon Builders Limited,101630,13/03/2014,10198725
INSERTED DETAIL,Resources & Corporate Governance ,Grounds Maintenance,WGM00,Vehicle Repair and Maintenance,0200,521.64,Spaldings (UK) Limited,101634,06/03/2014,10198754
INSERTED DETAIL,Resources & Corporate Governance ,Grounds Maintenance,WGM00,Tools,0304,158.40,Spaldings (UK) Limited,101634,06/03/2014,10198754
INSERTED DETAIL,Economy Development & Culture,The Benn Hall,BHL00,Internal Contractor,0743,1874.25,G4S Cash Services (UK) Limited,101656,13/03/2014,10198968
INSERTED DETAIL,Resources & Corporate Governance,Corporate Property R&M,CPA01,R&M External Contractors,0100,2018.34,Secom Plc,101671,27/03/2014,10199624
INSERTED DETAIL,Resources & Corporate Governance,Corporate Property R&M,CPA01,R&M External Contractors,0100,890.20,Secom Plc,101671,27/03/2014,10199625
INSERTED DETAIL,Resources & Corporate Governance,Housing Maintenance,WHM00,Materials,0303,4389.86,Travis Perkins Trading Co Ltd,101732,13/03/2014,10197273
INSERTED DETAIL,Resources & Corporate Governance,Housing Maintenance,WHM00,Materials,0303,3011.23,Travis Perkins Trading Co Ltd,101732,13/03/2014,10197640
INSERTED DETAIL,Resources & Corporate Governance,Housing Maintenance,WHM00,Materials,0303,3356.41,Travis Perkins Trading Co Ltd,101732,27/03/2014,10198024
INSERTED DETAIL,Resources & Corporate Governance,Housing Maintenance,WHM00,Materials,0303,6117.35,Travis Perkins Trading Co Ltd,101732,27/03/2014,10198243
INSERTED DETAIL,Resources & Corporate Governance,Housing Maintenance,WHM00,Materials,0303,3077.27,Travis Perkins Trading Co Ltd,101732,27/03/2014,10198604
INSERTED DETAIL,Resources & Corporate Governance ,Grounds Maintenance,WGM00,Vehicle Running Costs,0201,60.18,HI-Q Motorway,101736,13/03/2014,10194906
INSERTED DETAIL,Resources & Corporate Governance ,Domestic Waste Collection,WWC00,Vehicle Running Costs,0201,234.60,HI-Q Motorway,101736,13/03/2014,10194906
INSERTED DETAIL,Resources & Corporate Governance ,Trade Waste Collection,WWC01,Vehicle Running Costs,0201,197.00,HI-Q Motorway,101736,13/03/2014,10194906
INSERTED DETAIL,Resources & Corporate Governance ,Garage Internal,WVR01,Materials,0303,48.00,HI-Q Motorway,101736,13/03/2014,10194906
INSERTED DETAIL,Resources & Corporate Governance ,Domestic Waste Collection,WWC00,Vehicle Running Costs,0201,817.97,HI-Q Motorway,101736,06/03/2014,10198671
INSERTED DETAIL,Resources & Corporate Governance ,Trade Waste Collection,WWC01,Vehicle Running Costs,0201,361.98,HI-Q Motorway,101736,06/03/2014,10198671
INSERTED DETAIL,Resources & Corporate Governance ,Domestic Waste Collection,WWC00,Vehicle Running Costs,0201,654.00,HI-Q Motorway,101736,06/03/2014,10198760
INSERTED DETAIL,Resources & Corporate Governance ,Trade Waste Collection,WWC01,Vehicle Running Costs,0201,255.00,HI-Q Motorway,101736,06/03/2014,10198760
INSERTED DETAIL,Resources & Corporate Governance ,Trade Waste Collection,WWC01,Materials,0303,5281.00,Egbert H. Taylor & Co Ltd,101741,27/03/2014,10199876
INSERTED DETAIL,Economy Development & Culture,Planning General/Income,PLN00,Training fees,0011,450.00,Trevor Roberts Associates,101744,06/03/2014,10198499
INSERTED DETAIL,Resources & Corporate Governance ,Domestic Waste Collection,WWC00,Vehicle Repair and Maintenance,0200,527.25,Terberg Matec Uk,101761,27/03/2014,10199400
INSERTED DETAIL,Resources & Corporate Governance ,Safety and Resilience,EPL00,Payments to Other Local Authorities,0710,1742.70,Warwickshire County Council,101840,27/03/2014,10199841
INSERTED DETAIL,Capital Programme ,Open Spaces Refurbishment,LEI08,Capital Contract Payments,5000,35082.02,Wicksteed Leisure Limited,101845,27/03/2014,10199384
INSERTED DETAIL,Economy Development & Culture,Economic Development General,ECD00,Payments to Other Local Authorities,0710,5500.00,Warwickshire County Council,101893,06/03/2014,10198453
INSERTED DETAIL,Economy Development & Culture,Decrim. of Car Parking on street parking,DPE02,Payments to Other Local Authorities,0710,139052.00,Warwickshire County Council,101893,13/03/2014,10198950
INSERTED DETAIL,Resources & Corporate Governance ,Trade Waste Collection,WWC01,Removal of Waste - WCC,0711,54887.50,Warwickshire County Council,101893,20/03/2014,10198990
INSERTED DETAIL,Sustainable Environment ,Burglary,CAD03,Development Activities,0450,1700.00,Warwickshire County Council,101893,20/03/2014,10199216
INSERTED DETAIL,CSW Superfast Broadband,CSW Superfast Broadband,RBB00,Capital Contract Payments,5000,25995.00,Warwickshire County Council,101893,27/03/2014,10199445
INSERTED DETAIL,Economy Development & Culture,Planning General/Income,PLN00,Consultancy Costs,0740,5400.00,Warwickshire County Council,101893,20/03/2014,10199449
INSERTED DETAIL,Housing Revenue Account ,Unplanned Maintenance and Repair,UMR00,R&M External Contractors,0100,596.69,Adroit Services Ltd,101939,06/03/2014,10198538
INSERTED DETAIL,Capital Programme ,Electric to Gas Conversions,HIM04,Capital Contract Payments,5000,642.54,Adroit Services Ltd,101939,06/03/2014,10198538
INSERTED DETAIL,Housing Revenue Account ,Unplanned Maintenance and Repair,UMR00,R&M External Contractors,0100,1003.35,Adroit Services Ltd,101939,06/03/2014,10198539
INSERTED DETAIL,Capital Programme ,Electric to Gas Conversions,HIM04,Capital Contract Payments,5000,10672.76,Adroit Services Ltd,101939,13/03/2014,10198975
INSERTED DETAIL,Housing Revenue Account ,Unplanned Maintenance and Repair,UMR00,R&M External Contractors,0100,1060.78,Adroit Services Ltd,101939,13/03/2014,10198993
INSERTED DETAIL,Housing Revenue Account ,Unplanned Maintenance and Repair,UMR00,R&M External Contractors,0100,992.07,Adroit Services Ltd,101939,13/03/2014,10199051
INSERTED DETAIL,Capital Programme ,Electric to Gas Conversions,HIM04,Capital Contract Payments,5000,7786.38,Adroit Services Ltd,101939,13/03/2014,10199124
INSERTED DETAIL,Housing Revenue Account ,Unplanned Maintenance and Repair,UMR00,R&M External Contractors,0100,668.90,Adroit Services Ltd,101939,20/03/2014,10199272
INSERTED DETAIL,Capital Programme ,Electric to Gas Conversions,HIM04,Capital Contract Payments,5000,393.26,Adroit Services Ltd,101939,20/03/2014,10199272
INSERTED DETAIL,Capital Programme ,Electric to Gas Conversions,HIM04,Capital Contract Payments,5000,5336.38,Adroit Services Ltd,101939,20/03/2014,10199443
INSERTED DETAIL,Housing Revenue Account ,Unplanned Maintenance and Repair,UMR00,R&M External Contractors,0100,468.23,Adroit Services Ltd,101939,20/03/2014,10199478
INSERTED DETAIL,Capital Programme ,Electric to Gas Conversions,HIM04,Capital Contract Payments,5000,680.41,Adroit Services Ltd,101939,20/03/2014,10199478
INSERTED DETAIL,Housing Revenue Account ,Unplanned Maintenance and Repair,UMR00,R&M External Contractors,0100,401.34,Adroit Services Ltd,101939,20/03/2014,10199583
INSERTED DETAIL,Capital Programme ,Electric to Gas Conversions,HIM04,Capital Contract Payments,5000,190.00,Adroit Services Ltd,101939,20/03/2014,10199583
INSERTED DETAIL,Resources & Corporate Governance,Housing Maintenance,WHM00,External Contractor & Operator,0742,490.00,Adroit Services Ltd,101939,27/03/2014,10199596
INSERTED DETAIL,Housing Revenue Account ,Unplanned Maintenance and Repair,UMR00,R&M External Contractors,0100,936.46,Adroit Services Ltd,101939,27/03/2014,10199801
INSERTED DETAIL,Capital Programme ,Electric to Gas Conversions,HIM04,Capital Contract Payments,5000,365.65,Adroit Services Ltd,101939,27/03/2014,10199801
INSERTED DETAIL,Capital Programme ,Electric to Gas Conversions,HIM04,Capital Contract Payments,5000,10672.76,Adroit Services Ltd,101939,27/03/2014,10199845
INSERTED DETAIL,Resources & Corporate Governance,Corporate Property R&M,CPA01,R&M External Contractors,0100,596.00,Wallgate Ltd,107425,06/03/2014,10198608
INSERTED DETAIL,Resources & Corporate Governance,Corporate Property R&M,CPA01,R&M External Contractors,0100,745.00,Wallgate Ltd,107425,06/03/2014,10198609
INSERTED DETAIL,Resources & Corporate Governance ,"Communications, Consultation and Information Team",BTR20,Publicity & Marketing,0377,461.60,Johnston Publishing Ltd,107468,13/03/2014,10199220
INSERTED DETAIL,Resources & Corporate Governance ,Customer and Information Strategy,CIS10,Payments to Other Local Authorities,0710,6000.00,Nuneaton & Bedworth Borough Council,108060,06/03/2014,10198648
INSERTED DETAIL,Resources & Corporate Governance ,Human Resources,RES30,Payments to Other Local Authorities,0710,4155.00,Nuneaton & Bedworth Borough Council,108060,06/03/2014,10198649
INSERTED DETAIL,Resources & Corporate Governance,Corporate Property R&M,CPA01,R&M External Contractors,0100,424.00,Ser-Tec Systems Ltd,108074,06/03/2014,10198523
INSERTED DETAIL,Resources & Corporate Governance,Corporate Property R&M,CPA01,R&M External Contractors,0100,710.00,Ser-Tec Systems Ltd,108074,27/03/2014,10200054
INSERTED DETAIL,Capital Programme ,Crematorium Project,BUR04,Capital Contract Payments,5000,176479.26,Daventry District Council,108940,20/03/2014,10199339
INSERTED DETAIL,Economy Development & Culture,Visitor Centre,VSC00,Purchases for Resale,0305,655.80,Royal Mail,109166,20/03/2014,10199218
INSERTED DETAIL,Resources & Corporate Governance ,Grounds Maintenance,WGM00,Materials,0303,440.90,Boughton Loam Limited,110360,27/03/2014,10199377
INSERTED DETAIL,Resources & Corporate Governance ,Garage Internal,WVR01,Materials,0303,28195.92,Watson Petroleum,110361,13/03/2014,10199107
INSERTED DETAIL,Resources & Corporate Governance,Corporate Property R&M,CPA01,R&M External Contractors,0100,453.15,Croxford Electrical Ltd,110451,27/03/2014,10199153
INSERTED DETAIL,Resources & Corporate Governance,Corporate Property R&M,CPA01,R&M External Contractors,0100,6843.53,Croxford Electrical Ltd,110451,27/03/2014,10199688
INSERTED DETAIL,Resources & Corporate Governance,Corporate Property R&M,CPA01,R&M External Contractors,0100,3781.26,Croxford Electrical Ltd,110451,27/03/2014,10199834
INSERTED DETAIL,Resources & Corporate Governance,Corporate Property R&M,CPA01,R&M External Contractors,0100,1118.03,Croxford Electrical Ltd,110451,27/03/2014,10200030
INSERTED DETAIL,Resources & Corporate Governance,Corporate Property R&M,CPA01,R&M External Contractors,0100,788.29,Croxford Electrical Ltd,110451,27/03/2014,10200031
INSERTED DETAIL,Resources & Corporate Governance,Customer Support Services,CSS00,Payments to Other Local Authorities,0710,1013.00,Warwick District Council,111228,20/03/2014,10199500
INSERTED DETAIL,Economy Development & Culture,Sports and Recreation,LSD03,Development Activities,0450,1232.50,The Chefs Kitchen (UK) Limited,111682,13/03/2014,10199180
INSERTED DETAIL,Resources & Corporate Governance ,Maintenance of Customer Services Systems,CIS21,Software Maintenance,0374,497.62,Civica UK Ltd,112724,06/03/2014,10198735
INSERTED DETAIL,Capital Programme ,IBS development,IBS00,Capital Contract Payments,5000,7000.00,Civica UK Ltd,112724,13/03/2014,10198956
INSERTED DETAIL,Resources & Corporate Governance ,Maintenance of Customer Services Systems,CIS21,Software Maintenance,0374,5250.00,Civica UK Ltd,112724,13/03/2014,10198970
INSERTED DETAIL,Resources & Corporate Governance ,Maintenance of Customer Services Systems,CIS21,Software Maintenance,0374,5900.00,Civica UK Ltd,112724,13/03/2014,10199114
INSERTED DETAIL,Capital Programme ,IBS development,IBS00,Capital Contract Payments,5000,900.00,Civica UK Ltd,112724,20/03/2014,10199342
INSERTED DETAIL,Resources & Corporate Governance ,Mayoral Services,MAY00,Other Miscellaneous Expenses,0444,766.05,Thomas Fattorini Ltd,112742,13/03/2014,10199215
INSERTED DETAIL,Economy Development & Culture,Economic Development General,ECD00,Development Activities,0450,1675.00,Stratford on Avon District Council,113281,27/03/2014,10199666
INSERTED DETAIL,Housing Revenue Account ,Unplanned Maintenance and Repair,UMR00,R&M External Contractors,0100,1291.30,Temple Lifts Ltd,114738,13/03/2014,10199055
INSERTED DETAIL,Sustainable Inclusive Communities,Woodside Park,TVR00,R&M External Contractors,0100,1250.00,Wilkinson Environmental Ltd,115285,27/03/2014,10199981
INSERTED DETAIL,Sustainable Inclusive Communities,Housing Benefit Administration,HBA00,Other,0763,1325.00,Airey Consultancy Services Ltd,117127,27/03/2014,10200027
INSERTED DETAIL,Sustainable Environment ,Cemeteries General,CEM00,R&M External Contractors,0100,737.50,Lushglen,117749,20/03/2014,10199352
INSERTED DETAIL,Sustainable Environment ,Parks,PKS00,R&M External Contractors,0100,510.00,Lushglen,117749,20/03/2014,10199353
INSERTED DETAIL,Economy Development & Culture,Street Furniture,HIG01,External Contractor & Operator,0742,637.50,Lushglen,117749,20/03/2014,10199522
INSERTED DETAIL,Resources & Corporate Governance ,Human Resources Centralised Services,RES31,Training fees,0011,2975.00,Birmingham City University,117847,13/03/2014,10199170
INSERTED DETAIL,Resources & Corporate Governance,Corporate Property Central Utilities,CPA02,Electricity,0130,64.69,Southern Electric,118976,20/03/2014,10199161
INSERTED DETAIL,Resources & Corporate Governance ,WSU Depot,WDP00,Electricity,0130,908.32,Southern Electric,118976,20/03/2014,10199161
INSERTED DETAIL,Resources & Corporate Governance,Corporate Property Central Utilities,CPA02,Electricity,0130,7820.26,Southern Electric,118976,20/03/2014,10199386
INSERTED DETAIL,Economy Development & Culture,Planning General/Income,PLN00,External Legal Costs,0741,900.00,Mr Richard Kimblin,119247,20/03/2014,10199609
INSERTED DETAIL,Housing Revenue Account ,Unplanned Maintenance and Repair,UMR00,R&M External Contractors,0100,721.36,Pro-Tec Security Systems,119999,06/03/2014,10198717
INSERTED DETAIL,Resources & Corporate Governance ,Toilet Cleaning,WBC01,Agency Staff,0003,647.80,G Staff,120173,06/03/2014,10198493
INSERTED DETAIL,Resources & Corporate Governance ,Highways,WHG00,Agency Staff,0003,62.10,G Staff,120173,06/03/2014,10198493
INSERTED DETAIL,Resources & Corporate Governance ,Domestic Waste Collection,WWC00,Agency Staff,0003,639.20,G Staff,120173,06/03/2014,10198493
INSERTED DETAIL,Resources & Corporate Governance ,Trade Waste Collection,WWC01,Agency Staff,0003,26.00,G Staff,120173,06/03/2014,10198493
INSERTED DETAIL,Resources & Corporate Governance ,Toilet Cleaning,WBC01,Agency Staff,0003,302.40,G Staff,120173,06/03/2014,10198664
INSERTED DETAIL,Resources & Corporate Governance ,Street Cleansing,WSC00,Agency Staff,0003,346.86,G Staff,120173,06/03/2014,10198664
INSERTED DETAIL,Resources & Corporate Governance ,Domestic Waste Collection,WWC00,Agency Staff,0003,535.20,G Staff,120173,06/03/2014,10198664
INSERTED DETAIL,Resources & Corporate Governance ,Toilet Cleaning,WBC01,Agency Staff,0003,748.60,G Staff,120173,20/03/2014,10198926
INSERTED DETAIL,Resources & Corporate Governance ,Street Cleansing,WSC00,Agency Staff,0003,306.36,G Staff,120173,20/03/2014,10198926
INSERTED DETAIL,Resources & Corporate Governance ,Domestic Waste Collection,WWC00,Agency Staff,0003,721.50,G Staff,120173,20/03/2014,10198926
INSERTED DETAIL,Resources & Corporate Governance ,Toilet Cleaning,WBC01,Agency Staff,0003,748.60,G Staff,120173,20/03/2014,10199403
INSERTED DETAIL,Resources & Corporate Governance ,Street Cleansing,WSC00,Agency Staff,0003,178.02,G Staff,120173,20/03/2014,10199403
INSERTED DETAIL,Resources & Corporate Governance ,Domestic Waste Collection,WWC00,Agency Staff,0003,915.99,G Staff,120173,20/03/2014,10199403
INSERTED DETAIL,Resources & Corporate Governance ,Toilet Cleaning,WBC01,Agency Staff,0003,748.60,G Staff,120173,27/03/2014,10199743
INSERTED DETAIL,Resources & Corporate Governance ,Street Cleansing,WSC00,Agency Staff,0003,612.72,G Staff,120173,27/03/2014,10199743
INSERTED DETAIL,Resources & Corporate Governance ,Domestic Waste Collection,WWC00,Agency Staff,0003,1159.97,G Staff,120173,27/03/2014,10199743
INSERTED DETAIL,Resources & Corporate Governance ,Human Resources Centralised Services,RES31,Training fees,0011,1233.06,Nelson Training,120218,13/03/2014,10198960
INSERTED DETAIL,Resources & Corporate Governance ,Maintenance of Customer Services Systems,CIS21,Software Maintenance,0374,1560.00,Iken Business Ltd,121287,13/03/2014,10199185
INSERTED DETAIL,Sustainable Inclusive Communities,Housing Options Team,HOT00,Agency Staff,0003,666.00,Venn Group Recruitment Solutions,121594,06/03/2014,10198625
INSERTED DETAIL,Sustainable Inclusive Communities,Housing Options Team,HOT00,Agency Staff,0003,1078.28,Venn Group Recruitment Solutions,121594,06/03/2014,10198626
INSERTED DETAIL,Sustainable Inclusive Communities,Housing Options Team,HOT00,Agency Staff,0003,495.00,Venn Group Recruitment Solutions,121594,13/03/2014,10198955
INSERTED DETAIL,Sustainable Inclusive Communities,Housing Options Team,HOT00,Agency Staff,0003,1036.00,Venn Group Recruitment Solutions,121594,13/03/2014,10198959
INSERTED DETAIL,Sustainable Inclusive Communities,Housing Options Team,HOT00,Agency Staff,0003,423.00,Venn Group Recruitment Solutions,121594,27/03/2014,10199381
INSERTED DETAIL,Sustainable Inclusive Communities,Housing Options Team,HOT00,Agency Staff,0003,1064.00,Venn Group Recruitment Solutions,121594,27/03/2014,10199382
INSERTED DETAIL,Sustainable Inclusive Communities,Housing Options Team,HOT00,Agency Staff,0003,558.00,Venn Group Recruitment Solutions,121594,27/03/2014,10199682
INSERTED DETAIL,Sustainable Inclusive Communities,Housing Options Team,HOT00,Agency Staff,0003,1064.00,Venn Group Recruitment Solutions,121594,27/03/2014,10199683
INSERTED DETAIL,Resources & Corporate Governance ,Maintenance of Customer Services Systems,CIS21,Software Purchase,0373,6750.00,Northgate Information Solutions UK Ltd,121606,06/03/2014,10198476
INSERTED DETAIL,Resources & Corporate Governance ,Support Services,CIS20,Software Purchase,0373,3550.00,Northgate Information Solutions UK Ltd,121606,06/03/2014,10198656
INSERTED DETAIL,Resources & Corporate Governance,Corporate Property Administration,CPA00,Recruitment Expenses,0012,1401.46,HQN Limited,122890,06/03/2014,10197602
INSERTED DETAIL,Housing Revenue Account ,Property Maintenance,MAN23,Consultancy Costs,0740,2102.19,HQN Limited,122890,06/03/2014,10197602
INSERTED DETAIL,Resources & Corporate Governance ,Highways,WHG00,Materials,0303,104.67,Brinklow Quarry,122921,27/03/2014,10198836
INSERTED DETAIL,Housing Revenue Account ,Maintenance of Open Spaces,MOS00,External Contractor & Operator,0742,434.96,Brinklow Quarry,122921,27/03/2014,10198836
INSERTED DETAIL,Resources & Corporate Governance ,Highways,WHG00,External Contractor & Operator,0742,57.70,Brinklow Quarry,122921,27/03/2014,10198836
INSERTED DETAIL,Resources & Corporate Governance ,Central Telephone Service,TEL00,Telephone Expenses,0371,1183.53,Cable & Wireless/T/A Vodafone,123224,13/03/2014,10198941
INSERTED DETAIL,Resources & Corporate Governance ,Grounds Maintenance,WGM00,Materials,0303,1220.00,Rigby Taylor Ltd,123342,06/03/2014,10198758
INSERTED DETAIL,Resources & Corporate Governance ,Domestic Waste Collection,WWC00,Materials,0303,14083.68,SSI Schaefer Ltd,123543,06/03/2014,10198667
INSERTED DETAIL,Economy Development & Culture,Positive Futures,LSD04,Development Activities,0450,604.58,A Blair,124770,06/03/2014,10198643
INSERTED DETAIL,Resources & Corporate Governance ,"Communications, Consultation and Information Team",BTR20,Publicity & Marketing,0377,867.67,British Telecommunications,124840,20/03/2014,10199490
INSERTED DETAIL,Capital Programme ,Purchase of Vehicles,VHC00,Miscellaneous Capital Expenditure,5020,13220.00,Guest Trucks,126437,27/03/2014,10200078
INSERTED DETAIL,Sustainable Environment,Environmental Protection FPNs,REG20,Materials,0303,1194.00,"Rapid Vision Systems Ltd.,",128670,27/03/2014,10199646
INSERTED DETAIL,Resources & Corporate Governance ,Domestic Waste Collection,WWC00,Vehicle Repair and Maintenance,0200,580.00,ABS Limited,129026,27/03/2014,10199649
INSERTED DETAIL,Resources & Corporate Governance ,General Financial Services,GFS00,Payments to Other Local Authorities,0710,1000.00,Bromsgrove District Council,129291,27/03/2014,10199668
INSERTED DETAIL,Resources & Corporate Governance,Housing Maintenance,WHM00,External Contractor & Operator,0742,1200.00,M P Hudson & Son,129334,20/03/2014,10199249
INSERTED DETAIL,Resources & Corporate Governance,Housing Maintenance,WHM00,External Contractor & Operator,0742,1365.00,M P Hudson & Son,129334,20/03/2014,10199519
INSERTED DETAIL,Resources & Corporate Governance,Housing Maintenance,WHM00,External Contractor & Operator,0742,1494.50,M P Hudson & Son,129334,27/03/2014,10199908
INSERTED DETAIL,Resources & Corporate Governance ,Domestic Waste Collection,WWC00,Publicity & Marketing,0377,1341.00,Get it Sorted Limited,129426,27/03/2014,10199877
INSERTED DETAIL,Resources & Corporate Governance ,Grounds Maintenance,WGM00,External Contractor & Operator,0742,760.00,Complete Weed Control,129556,13/03/2014,10199113
INSERTED DETAIL,Sustainable Environment,Crematorium,CRM00,New Equipment,0300,83.47,Lyreco,129956,13/03/2014,10199119
INSERTED DETAIL,Sustainable Environment,Crematorium,CRM00,Stationery Supplies,0350,443.58,Lyreco,129956,13/03/2014,10199119
INSERTED DETAIL,Resources & Corporate Governance ,"Communications, Consultation and Information Team",BTR20,Consultation,0378,3300.00,Rugby FM,131249,27/03/2014,10198452
INSERTED DETAIL,Capital Programme ,Open Spaces Refurbishment,LEI08,Capital Contract Payments,5000,1060.00,I D Welding & Fabrications,131407,06/03/2014,10198208
INSERTED DETAIL,Resources & Corporate Governance ,Grounds Maintenance,WGM00,External Contractor & Operator,0742,688.00,I D Welding & Fabrications,131407,27/03/2014,10199222
INSERTED DETAIL,Sustainable Environment ,Parks,PKS00,R&M External Contractors,0100,610.00,I D Welding & Fabrications,131407,27/03/2014,10199572
INSERTED DETAIL,Economy Development & Culture,Decrim. of Car Parking on street parking,DPE02,Cash Collection,0744,591.84,Jade Security Services Ltd,131711,13/03/2014,10199182
INSERTED DETAIL,Economy Development & Culture,Car Parks General,CPK01,Cash Collection,0744,964.48,Jade Security Services Ltd,131711,13/03/2014,10199183
INSERTED DETAIL,Capital Programme ,Disabled Facilities Grant,REN01,Capital Grants,5014,2041.00,D K Builders,131946,27/03/2014,10199717
INSERTED DETAIL,Capital Programme ,Disabled Facilities Grant,REN01,Capital Grants,5014,4713.00,D K Builders,131946,27/03/2014,10199912
INSERTED DETAIL,Housing Revenue Account ,Unplanned Maintenance and Repair,UMR00,R&M External Contractors,0100,932.58,Wilson Electrics,132051,06/03/2014,10198541
INSERTED DETAIL,Economy Development & Culture,Economic Development General,ECD00,Consultancy Costs,0740,2950.00,Valuation Office Agency,132903,20/03/2014,10199343
INSERTED DETAIL,Economy Development & Culture,Economic Development General,ECD00,Consultancy Costs,0740,2850.00,Valuation Office Agency,132903,20/03/2014,10199344
INSERTED DETAIL,Economy Development & Culture,Town Centre CCTV and Management,TVM00,Other Agencies,0734,20739.58,Rugby First Ltd - BID,133176,20/03/2014,10199310
INSERTED DETAIL,Resources & Corporate Governance ,Safety and Resilience,EPL00,Training fees,0011,460.00,IOSH,133765,13/03/2014,10198771
INSERTED DETAIL,Sustainable Inclusive Communities,Housing Options Team,HOT00,Agency Staff,0003,2081.74,Community Resourcing,133778,06/03/2014,10198509
INSERTED DETAIL,Sustainable Inclusive Communities,Housing Options Team,HOT00,Agency Staff,0003,1063.43,Community Resourcing,133778,13/03/2014,10198947
INSERTED DETAIL,Sustainable Inclusive Communities,Housing Options Team,HOT00,Agency Staff,0003,1037.65,Community Resourcing,133778,20/03/2014,10199324
INSERTED DETAIL,Resources & Corporate Governance,Housing Maintenance,WHM00,External Contractor & Operator,0742,1796.00,Homecare Decorating,133884,27/03/2014,10199660
INSERTED DETAIL,Resources & Corporate Governance,Housing Maintenance,WHM00,External Contractor & Operator,0742,3248.75,Homecare Decorating,133884,27/03/2014,10199663
INSERTED DETAIL,Resources & Corporate Governance,Housing Maintenance,WHM00,External Contractor & Operator,0742,2083.75,Homecare Decorating,133884,27/03/2014,10199664
INSERTED DETAIL,Capital Programme ,Corporate Property Enhancements,CPE00,R&M External Contractors,0100,7045.62,Sunfish Services Ltd,133886,06/03/2014,10198657
INSERTED DETAIL,Housing Revenue Account ,Unplanned Maintenance and Repair,UMR00,R&M External Contractors,0100,2681.83,Sunfish Services Ltd,133886,06/03/2014,10198874
INSERTED DETAIL,Resources & Corporate Governance,Corporate Property R&M,CPA01,R&M External Contractors,0100,890.68,Sunfish Services Ltd,133886,27/03/2014,10199917
INSERTED DETAIL,Resources & Corporate Governance,Corporate Property R&M,CPA01,R&M External Contractors,0100,1037.27,Sunfish Services Ltd,133886,27/03/2014,10199939
INSERTED DETAIL,Resources & Corporate Governance,Corporate Property R&M,CPA01,R&M External Contractors,0100,1099.16,Sunfish Services Ltd,133886,27/03/2014,10199942
INSERTED DETAIL,Resources & Corporate Governance,Corporate Property R&M,CPA01,R&M External Contractors,0100,780.33,Sunfish Services Ltd,133886,27/03/2014,10199983
INSERTED DETAIL,Economy Development & Culture,Car Parks General,CPK01,Other Agencies,0734,560.00,24181 TEC,133967,20/03/2014,10199311
INSERTED DETAIL,Economy Development & Culture,Decrim. of Car Parking on street parking,DPE02,Other Agencies,0734,2240.00,24181 TEC,133967,20/03/2014,10199311
INSERTED DETAIL,Resources & Corporate Governance ,Grounds Maintenance,WGM00,Materials,0303,979.20,AVONDALE NURSERY,134898,27/03/2014,10200043
INSERTED DETAIL,Resources & Corporate Governance ,Garage Internal,WVR01,Materials,0303,957.20,Brenntag UK Limited,135098,13/03/2014,10197795
INSERTED DETAIL,Sustainable Inclusive Communities,CL Grants,CGS00,Grants To Voluntary Organisations,0720,5500.00,Brownsover Community Association,135180,06/03/2014,10198620
INSERTED DETAIL,Sustainable Inclusive Communities,Housing Strategy & Enabling,HSE00,Agency Staff,0003,470.42,Morgan Hunt UK Ltd,136143,06/03/2014,10198508
INSERTED DETAIL,Sustainable Inclusive Communities,Housing Strategy & Enabling,HSE00,Agency Staff,0003,798.62,Morgan Hunt UK Ltd,136143,13/03/2014,10198951
INSERTED DETAIL,Sustainable Inclusive Communities,Housing Strategy & Enabling,HSE00,Agency Staff,0003,804.09,Morgan Hunt UK Ltd,136143,20/03/2014,10199292
INSERTED DETAIL,Sustainable Inclusive Communities,Housing Strategy & Enabling,HSE00,Agency Staff,0003,639.99,Morgan Hunt UK Ltd,136143,27/03/2014,10199621
INSERTED DETAIL,Resources & Corporate Governance ,Council Tax and NNDR Collection,CTX01,External Legal Costs,0741,700.00,Summers Nigh Law,136330,27/03/2014,10199976
INSERTED DETAIL,Resources & Corporate Governance ,Domestic Waste Collection,WWC00,Vehicle Repair and Maintenance,0200,579.04,Heil Farid European Company Ltd,137390,06/03/2014,10198505
INSERTED DETAIL,Sustainable Environment ,Crime and Disorder Activities,CAD00,Other Miscellaneous Expenses,0444,-556.22,Solon Security Ltd,137493,13/12/2013,10195571
INSERTED DETAIL,Economy Development & Culture,AGM Conservation/Documentation,AGM01,Other Miscellaneous Expenses,0444,920.00,Meaco Measurement and Control Ltd,138998,27/03/2014,10199990
INSERTED DETAIL,Economy Development & Culture,Planning General/Income,PLN00,Consultancy Costs,0740,1000.00,GHM Planning Ltd,139382,13/03/2014,10199184
INSERTED DETAIL,Capital Programme ,Woodland Creation Project,WCP00,Capital Contract Payments,5000,4200.00,D J Whitlock Plant Hire,140156,20/03/2014,10197698
INSERTED DETAIL,Resources & Corporate Governance ,Domestic Waste Collection,WWC00,Vehicle Repair and Maintenance,0200,469.13,Midlands Truck & Van Ltd,140322,27/03/2014,10199391
INSERTED DETAIL,Resources & Corporate Governance ,Trade Waste Collection,WWC01,Vehicle Repair and Maintenance,0200,73.25,Midlands Truck & Van Ltd,140322,27/03/2014,10199391
INSERTED DETAIL,Resources & Corporate Governance ,Domestic Waste Collection,WWC00,Vehicle Repair and Maintenance,0200,3317.63,Midlands Truck & Van Ltd,140322,27/03/2014,10199742
INSERTED DETAIL,Resources & Corporate Governance ,Maintenance of Customer Services Systems,CIS21,Software Maintenance,0374,4659.01,Midland Software Ltd,140463,13/03/2014,10198868
INSERTED DETAIL,,Balance Sheet,BS,Car Loan Scheme,9261,3799.94,REDACTED PERSONAL DATA,141246,13/03/2014,10199165
INSERTED DETAIL,Housing Revenue Account ,Control Centre CCTV,CCE01,External Legal Costs,0741,15574.92,Securitas Security Personnel Ltd,145079,13/03/2014,10198944
INSERTED DETAIL,Housing Revenue Account ,Control Centre CCTV,CCE01,External Contractor & Operator,0742,15574.92,Securitas Security Personnel Ltd,145079,27/03/2014,10200058
INSERTED DETAIL,Sustainable Environment ,Parks,PKS00,External Contractor & Operator,0742,8685.88,Matta Products (UK),145081,06/03/2014,10198755
INSERTED DETAIL,Resources & Corporate Governance,Housing Maintenance,WHM00,Agency Staff,0003,1308.12,Blue Arrow Limited,145492,06/03/2014,10198472
INSERTED DETAIL,Resources & Corporate Governance ,Street Cleansing,WSC00,Agency Staff,0003,1061.84,Blue Arrow Limited,145492,06/03/2014,10198472
INSERTED DETAIL,Resources & Corporate Governance ,Domestic Waste Collection,WWC00,Agency Staff,0003,948.64,Blue Arrow Limited,145492,06/03/2014,10198472
INSERTED DETAIL,Resources & Corporate Governance,Housing Maintenance,WHM00,Agency Staff,0003,1919.97,Blue Arrow Limited,145492,06/03/2014,10198707
INSERTED DETAIL,Resources & Corporate Governance ,Street Cleansing,WSC00,Agency Staff,0003,454.35,Blue Arrow Limited,145492,06/03/2014,10198707
INSERTED DETAIL,Resources & Corporate Governance ,Domestic Waste Collection,WWC00,Agency Staff,0003,1007.00,Blue Arrow Limited,145492,06/03/2014,10198707
INSERTED DETAIL,Resources & Corporate Governance,Housing Maintenance,WHM00,Agency Staff,0003,2417.80,Blue Arrow Limited,145492,20/03/2014,10199223
INSERTED DETAIL,Resources & Corporate Governance ,Street Cleansing,WSC00,Agency Staff,0003,956.02,Blue Arrow Limited,145492,20/03/2014,10199223
INSERTED DETAIL,Resources & Corporate Governance ,Domestic Waste Collection,WWC00,Agency Staff,0003,1191.31,Blue Arrow Limited,145492,20/03/2014,10199223
INSERTED DETAIL,Resources & Corporate Governance,Housing Maintenance,WHM00,Agency Staff,0003,1240.62,Blue Arrow Limited,145492,20/03/2014,10199537
INSERTED DETAIL,Resources & Corporate Governance ,Street Cleansing,WSC00,Agency Staff,0003,817.49,Blue Arrow Limited,145492,20/03/2014,10199537
INSERTED DETAIL,Resources & Corporate Governance ,Domestic Waste Collection,WWC00,Agency Staff,0003,1130.05,Blue Arrow Limited,145492,20/03/2014,10199537
INSERTED DETAIL,Resources & Corporate Governance,Housing Maintenance,WHM00,Agency Staff,0003,1276.20,Blue Arrow Limited,145492,27/03/2014,10199966
INSERTED DETAIL,Resources & Corporate Governance ,Street Cleansing,WSC00,Agency Staff,0003,1267.03,Blue Arrow Limited,145492,27/03/2014,10199966
INSERTED DETAIL,Resources & Corporate Governance ,Domestic Waste Collection,WWC00,Agency Staff,0003,1450.21,Blue Arrow Limited,145492,27/03/2014,10199966
INSERTED DETAIL,Resources & Corporate Governance ,General Financial Services,GFS00,External Contractor & Operator,0742,18098.00,Grant Thornton UK LLP,145501,20/03/2014,10199362
INSERTED DETAIL,Housing Revenue Account ,Supervision and Management General,MAN00,Publicity & Marketing,0377,979.44,Impress Print,145574,06/03/2014,10198694
INSERTED DETAIL,Resources & Corporate Governance ,Safety and Resilience,EPL00,Other Miscellaneous Expenses,0444,890.30,AST Connections Ltd,145592,13/03/2014,10198954
INSERTED DETAIL,Resources & Corporate Governance ,Human Resources Centralised Services,RES31,Training fees,0011,539.50,G Wardle,145958,20/03/2014,10199188
INSERTED DETAIL,Capital Programme ,Disabled Facilities Grant,REN01,Capital Grants,5014,3379.16,Inhouse Renovations,145963,27/03/2014,10199460
INSERTED DETAIL,Resources & Corporate Governance,Corporate Property R&M,CPA01,R&M External Contractors,0100,692.00,Stanair Industrial Services Ltd,146499,27/03/2014,10199642
INSERTED DETAIL,Resources & Corporate Governance ,WSU Depot,WDP00,Telephone Expenses,0371,4420.33,Virgin Media Business Ltd,146605,13/03/2014,10199181
INSERTED DETAIL,Resources & Corporate Governance,Housing Maintenance,WHM00,External Contractor & Operator,0742,495.00,Mick Brown Plastering,146699,13/03/2014,10197300
INSERTED DETAIL,Resources & Corporate Governance,Housing Maintenance,WHM00,External Contractor & Operator,0742,502.00,Mick Brown Plastering,146699,20/03/2014,10198565
INSERTED DETAIL,Resources & Corporate Governance,Housing Maintenance,WHM00,External Contractor & Operator,0742,495.00,Mick Brown Plastering,146699,13/03/2014,10198584
INSERTED DETAIL,Resources & Corporate Governance,Housing Maintenance,WHM00,External Contractor & Operator,0742,437.00,Mick Brown Plastering,146699,20/03/2014,10199016
INSERTED DETAIL,Resources & Corporate Governance,Housing Maintenance,WHM00,External Contractor & Operator,0742,830.00,Mick Brown Plastering,146699,20/03/2014,10199022
INSERTED DETAIL,Resources & Corporate Governance,Housing Maintenance,WHM00,External Contractor & Operator,0742,428.00,Mick Brown Plastering,146699,27/03/2014,10199602
INSERTED DETAIL,Resources & Corporate Governance,Housing Maintenance,WHM00,External Contractor & Operator,0742,733.00,Mick Brown Plastering,146699,27/03/2014,10199605
INSERTED DETAIL,Resources & Corporate Governance,Corporate Property R&M,CPA01,R&M External Contractors,0100,3098.01,Environmental Essentials Ltd,146842,27/03/2014,10197930
INSERTED DETAIL,Resources & Corporate Governance ,Retired Employees,RET00,Additional Pension Payments,0014,22193.42,WCC Pension Fund,146914,20/03/2014,10199497
INSERTED DETAIL,Resources & Corporate Governance ,Safety and Resilience,EPL00,New Equipment,0300,610.00,Evac+Chair International Ltd,146921,27/03/2014,10199875
INSERTED DETAIL,Economy Development & Culture,Art Gallery and Museum,AGM00,Postage & Distribution,0370,0.42,TNT Post Midlands Ltd,146983,06/03/2014,10198610
INSERTED DETAIL,Economy Development & Culture,Building Control Services,BCS00,Postage & Distribution,0370,0.60,TNT Post Midlands Ltd,146983,06/03/2014,10198610
INSERTED DETAIL,Economy Development & Culture,Building Control Services Non-Fee Earning Account,BCS01,Postage & Distribution,0370,0.60,TNT Post Midlands Ltd,146983,06/03/2014,10198610
INSERTED DETAIL,Economy Development & Culture,Building Regulation Fee Earning Account,BCS99,Postage & Distribution,0370,10.75,TNT Post Midlands Ltd,146983,06/03/2014,10198610
INSERTED DETAIL,Resources & Corporate Governance,Central Business Support Services,CSS15,Postage & Distribution,0370,35.73,TNT Post Midlands Ltd,146983,06/03/2014,10198610
INSERTED DETAIL,Resources & Corporate Governance ,Council Tax and NNDR Collection,CTX01,Postage & Distribution,0370,233.07,TNT Post Midlands Ltd,146983,06/03/2014,10198610
INSERTED DETAIL,Resources & Corporate Governance ,Electoral Registration,ERG00,Postage & Distribution,0370,477.36,TNT Post Midlands Ltd,146983,06/03/2014,10198610
INSERTED DETAIL,Sustainable Inclusive Communities,Housing Benefit Administration,HBA00,Postage & Distribution,0370,185.30,TNT Post Midlands Ltd,146983,06/03/2014,10198610
INSERTED DETAIL,Housing Revenue Account ,Supervision and Management General,MAN00,Postage & Distribution,0370,51.52,TNT Post Midlands Ltd,146983,06/03/2014,10198610
INSERTED DETAIL,Economy Development & Culture,Visitor Centre,VSC00,Postage & Distribution,0370,1.66,TNT Post Midlands Ltd,146983,06/03/2014,10198610
INSERTED DETAIL,Resources & Corporate Governance ,General Administration,WAD00,Postage & Distribution,0370,12.88,TNT Post Midlands Ltd,146983,06/03/2014,10198610
INSERTED DETAIL,Economy Development & Culture,Building Control Services,BCS00,Postage & Distribution,0370,0.73,TNT Post Midlands Ltd,146983,27/03/2014,10199285
INSERTED DETAIL,Economy Development & Culture,Building Control Services Non-Fee Earning Account,BCS01,Postage & Distribution,0370,0.73,TNT Post Midlands Ltd,146983,27/03/2014,10199285
INSERTED DETAIL,Economy Development & Culture,Building Regulation Fee Earning Account,BCS99,Postage & Distribution,0370,13.18,TNT Post Midlands Ltd,146983,27/03/2014,10199285
INSERTED DETAIL,Resources & Corporate Governance,Central Business Support Services,CSS15,Postage & Distribution,0370,67.00,TNT Post Midlands Ltd,146983,27/03/2014,10199285
INSERTED DETAIL,Resources & Corporate Governance ,Council Tax and NNDR Collection,CTX01,Postage & Distribution,0370,1166.96,TNT Post Midlands Ltd,146983,27/03/2014,10199285
INSERTED DETAIL,Resources & Corporate Governance ,Electoral Registration,ERG00,Postage & Distribution,0370,93.55,TNT Post Midlands Ltd,146983,27/03/2014,10199285
INSERTED DETAIL,Sustainable Inclusive Communities,Housing Benefit Administration,HBA00,Postage & Distribution,0370,946.41,TNT Post Midlands Ltd,146983,27/03/2014,10199285
INSERTED DETAIL,Housing Revenue Account ,Supervision and Management General,MAN00,Postage & Distribution,0370,67.96,TNT Post Midlands Ltd,146983,27/03/2014,10199285
INSERTED DETAIL,Resources & Corporate Governance ,General Administration,WAD00,Postage & Distribution,0370,6.52,TNT Post Midlands Ltd,146983,27/03/2014,10199285
INSERTED DETAIL,Economy Development & Culture,Building Control Services,BCS00,Postage & Distribution,0370,1.27,TNT Post Midlands Ltd,146983,27/03/2014,10199805
INSERTED DETAIL,Economy Development & Culture,Building Control Services Non-Fee Earning Account,BCS01,Postage & Distribution,0370,1.27,TNT Post Midlands Ltd,146983,27/03/2014,10199805
INSERTED DETAIL,Economy Development & Culture,Building Regulation Fee Earning Account,BCS99,Postage & Distribution,0370,22.80,TNT Post Midlands Ltd,146983,27/03/2014,10199805
INSERTED DETAIL,Resources & Corporate Governance,Central Business Support Services,CSS15,Postage & Distribution,0370,62.07,TNT Post Midlands Ltd,146983,27/03/2014,10199805
INSERTED DETAIL,Resources & Corporate Governance ,Council Tax and NNDR Collection,CTX01,Postage & Distribution,0370,294.22,TNT Post Midlands Ltd,146983,27/03/2014,10199805
INSERTED DETAIL,Resources & Corporate Governance ,Electoral Registration,ERG00,Postage & Distribution,0370,2231.23,TNT Post Midlands Ltd,146983,27/03/2014,10199805
INSERTED DETAIL,Sustainable Inclusive Communities,Housing Benefit Administration,HBA00,Postage & Distribution,0370,271.85,TNT Post Midlands Ltd,146983,27/03/2014,10199805
INSERTED DETAIL,Housing Revenue Account ,Supervision and Management General,MAN00,Postage & Distribution,0370,68.08,TNT Post Midlands Ltd,146983,27/03/2014,10199805
INSERTED DETAIL,Resources & Corporate Governance ,General Administration,WAD00,Postage & Distribution,0370,29.53,TNT Post Midlands Ltd,146983,27/03/2014,10199805
INSERTED DETAIL,Capital Programme ,Kitchen Modifications,HIK10,Capital Contract Payments,5000,28620.00,CLC Contractors Ltd,147076,06/03/2014,10197831
INSERTED DETAIL,Resources & Corporate Governance,Housing Maintenance,WHM00,External Contractor & Operator,0742,2390.15,Intelligent Disabled Solutions Ltd,147081,27/03/2014,10199507
INSERTED DETAIL,Resources & Corporate Governance,Housing Maintenance,WHM00,External Contractor & Operator,0742,675.00,K A Cooke Limited,147120,06/03/2014,10198631
INSERTED DETAIL,Resources & Corporate Governance,Housing Maintenance,WHM00,External Contractor & Operator,0742,560.00,K A Cooke Limited,147120,06/03/2014,10198636
INSERTED DETAIL,Resources & Corporate Governance,Housing Maintenance,WHM00,External Contractor & Operator,0742,860.00,K A Cooke Limited,147120,20/03/2014,10199199
INSERTED DETAIL,Resources & Corporate Governance,Housing Maintenance,WHM00,External Contractor & Operator,0742,880.00,K A Cooke Limited,147120,20/03/2014,10199250
INSERTED DETAIL,Resources & Corporate Governance,Housing Maintenance,WHM00,External Contractor & Operator,0742,1215.00,K A Cooke Limited,147120,27/03/2014,10200009
INSERTED DETAIL,Resources & Corporate Governance,Housing Maintenance,WHM00,External Contractor & Operator,0742,990.00,K A Cooke Limited,147120,27/03/2014,10200010
INSERTED DETAIL,Resources & Corporate Governance,Housing Maintenance,WHM00,External Contractor & Operator,0742,2695.00,K A Cooke Limited,147120,27/03/2014,10200012
INSERTED DETAIL,Resources & Corporate Governance,Housing Maintenance,WHM00,External Contractor & Operator,0742,540.00,K A Cooke Limited,147120,27/03/2014,10200014
INSERTED DETAIL,Resources & Corporate Governance,Housing Maintenance,WHM00,External Contractor & Operator,0742,1150.00,K A Cooke Limited,147120,27/03/2014,10200016
INSERTED DETAIL,Resources & Corporate Governance,Housing Maintenance,WHM00,External Contractor & Operator,0742,1660.00,K A Cooke Limited,147120,27/03/2014,10200019
INSERTED DETAIL,Resources & Corporate Governance,Housing Maintenance,WHM00,External Contractor & Operator,0742,540.00,K A Cooke Limited,147120,27/03/2014,10200020
INSERTED DETAIL,Resources & Corporate Governance,Housing Maintenance,WHM00,External Contractor & Operator,0742,1600.00,K A Cooke Limited,147120,27/03/2014,10200022
INSERTED DETAIL,Resources & Corporate Governance ,Domestic Waste Collection,WWC00,External Contractor & Operator,0742,600.00,James Baxter Haulage Ltd,147159,06/03/2014,10198772
INSERTED DETAIL,Resources & Corporate Governance ,Domestic Waste Collection,WWC00,External Contractor & Operator,0742,604.50,James Baxter Haulage Ltd,147159,27/03/2014,10199633
INSERTED DETAIL,Resources & Corporate Governance ,Human Resources Centralised Services,RES31,Training fees,0011,2910.00,Globe Training,147192,06/03/2014,10198486
INSERTED DETAIL,Sustainable Inclusive Communities,Housing Strategy & Enabling,HSE00,Other,0763,4250.00,Midlands Rural Housing,147202,06/03/2014,10198360
INSERTED DETAIL,Resources & Corporate Governance,Housing Maintenance,WHM00,External Contractor & Operator,0742,464.05,C H Electrical (Leics) Ltd,147209,20/03/2014,10196278
INSERTED DETAIL,Resources & Corporate Governance,Corporate Property R&M,CPA01,R&M External Contractors,0100,418.00,AirTech Controls Ltd,147262,06/03/2014,10198455
INSERTED DETAIL,Capital Programme ,Electric to Gas Conversions,HIM04,Capital Contract Payments,5000,28000.00,Liberty Gas Group,147368,13/03/2014,10198914
INSERTED DETAIL,Capital Programme ,Electric to Gas Conversions,HIM04,Capital Contract Payments,5000,61600.00,Liberty Gas Group,147368,27/03/2014,10199576
INSERTED DETAIL,Capital Programme ,Electric to Gas Conversions,HIM04,Capital Contract Payments,5000,9230.00,Liberty Gas Group,147368,27/03/2014,10199771
INSERTED DETAIL,Resources & Corporate Governance,Corporate Property R&M,CPA01,R&M External Contractors,0100,1782.44,Safelincs Ltd,147394,20/03/2014,10199530
INSERTED DETAIL,Resources & Corporate Governance,Corporate Property R&M,CPA01,R&M External Contractors,0100,2935.79,Arden Construction Ltd,147430,06/03/2014,10198496
INSERTED DETAIL,Resources & Corporate Governance,Corporate Property R&M,CPA01,R&M External Contractors,0100,8733.11,Arden Construction Ltd,147430,27/03/2014,10200072
INSERTED DETAIL,Resources & Corporate Governance,Corporate Property R&M,CPA01,R&M External Contractors,0100,2880.00,Arden Construction Ltd,147430,27/03/2014,10200073
INSERTED DETAIL,Resources & Corporate Governance,Corporate Property R&M,CPA01,R&M External Contractors,0100,2925.00,Arden Construction Ltd,147430,27/03/2014,10200074
INSERTED DETAIL,Capital Programme ,Corporate Property Enhancements,CPE00,Capital Contract Payments,5000,4706.69,Arden Construction Ltd,147430,27/03/2014,10200075
INSERTED DETAIL,Capital Programme ,Corporate Property Enhancements,CPE00,Capital Contract Payments,5000,4695.19,Arden Construction Ltd,147430,27/03/2014,10200076
INSERTED DETAIL,Capital Programme ,Corporate Property Enhancements,CPE00,Capital Contract Payments,5000,3665.05,Arden Construction Ltd,147430,27/03/2014,10200079
INSERTED DETAIL,Housing Revenue Account ,Unplanned Maintenance and Repair,UMR00,R&M External Contractors,0100,420.00,Howard Ward Associates LLP,147433,27/03/2014,10198533
INSERTED DETAIL,Housing Revenue Account ,Unplanned Maintenance and Repair,UMR00,R&M External Contractors,0100,420.00,Howard Ward Associates LLP,147433,13/03/2014,10199078
INSERTED DETAIL,Capital Programme ,Kitchen Modifications,HIK10,Capital Contract Payments,5000,4951.19,Rixonway Kitchens Ltd,147446,13/03/2014,10196507
INSERTED DETAIL,Capital Programme ,Kitchen Modifications,HIK10,Capital Contract Payments,5000,1025.00,Rixonway Kitchens Ltd,147446,06/03/2014,10198875
INSERTED DETAIL,Capital Programme ,Kitchen Modifications,HIK10,Capital Contract Payments,5000,6447.86,Rixonway Kitchens Ltd,147446,27/03/2014,10199847
INSERTED DETAIL,Economy Development & Culture,Family Lifestyle Project,LSD11,Development Activities,0450,543.68,Go Promotional,147715,27/03/2014,10200037
INSERTED DETAIL,Sustainable Environment ,Violence,CAD01,Development Activities,0450,750.00,Community Information Services Ltd,147761,13/03/2014,10190051
INSERTED DETAIL,Economy Development & Culture,The Benn Hall,BHL00,Subscriptions,0421,1284.30,PRS For Music,147770,27/03/2014,10199714
INSERTED DETAIL,Resources & Corporate Governance ,General Financial Services,GFS00,External Contractor & Operator,0742,3780.82,Tradition (UK) Ltd,147842,13/03/2014,10199035
INSERTED DETAIL,Resources & Corporate Governance,Housing Maintenance,WHM00,External Contractor & Operator,0742,506.40,Coventry Garage Doors,147883,27/03/2014,10198175
INSERTED DETAIL,Resources & Corporate Governance,Housing Maintenance,WHM00,External Contractor & Operator,0742,506.40,Coventry Garage Doors,147883,27/03/2014,10199515
INSERTED DETAIL,Resources & Corporate Governance,Housing Maintenance,WHM00,External Contractor & Operator,0742,506.40,Coventry Garage Doors,147883,27/03/2014,10199516
INSERTED DETAIL,Resources & Corporate Governance,Housing Maintenance,WHM00,External Contractor & Operator,0742,580.00,Coventry Garage Doors,147883,27/03/2014,10199517
INSERTED DETAIL,Capital Programme ,Purchase of Vehicles,VHC00,Miscellaneous Capital Expenditure,5020,10650.00,Global Sales,147961,20/03/2014,10198697
INSERTED DETAIL,Resources & Corporate Governance ,Customer and Information Strategy,CIS10,Software Maintenance,0374,3000.00,NSC Legacydata Solutions Ltd,148083,06/03/2014,10198458
INSERTED DETAIL,Housing Revenue Account ,Unplanned Maintenance and Repair,UMR00,R&M External Contractors,0100,465.08,Western Power Distribution,148103,13/03/2014,10198971
INSERTED DETAIL,Economy Development & Culture,The Benn Hall,BHL00,Recruitment Expenses,0012,59.85,Team Prevent UK Ltd,148151,06/03/2014,10198650
INSERTED DETAIL,Resources & Corporate Governance ,Customer and Information Strategy,CIS10,Recruitment Expenses,0012,19.95,Team Prevent UK Ltd,148151,06/03/2014,10198650
INSERTED DETAIL,Sustainable Environment,Crematorium,CRM00,Recruitment Expenses,0012,39.90,Team Prevent UK Ltd,148151,06/03/2014,10198650
INSERTED DETAIL,Resources & Corporate Governance,Apprenticeship Scheme,CSS25,Recruitment Expenses,0012,19.95,Team Prevent UK Ltd,148151,06/03/2014,10198650
INSERTED DETAIL,Resources & Corporate Governance ,Electoral Registration,ERG00,Recruitment Expenses,0012,19.95,Team Prevent UK Ltd,148151,06/03/2014,10198650
INSERTED DETAIL,Resources & Corporate Governance ,TREE WORKS,WGM01,Recruitment Expenses,0012,19.95,Team Prevent UK Ltd,148151,06/03/2014,10198650
INSERTED DETAIL,Economy Development & Culture,The Benn Hall,BHL00,Employee wellbeing/Other employee expenses,0021,35.00,Team Prevent UK Ltd,148151,06/03/2014,10198650
INSERTED DETAIL,Housing Revenue Account ,Control Centre (HRA),CCE00,Employee wellbeing/Other employee expenses,0021,52.50,Team Prevent UK Ltd,148151,06/03/2014,10198650
INSERTED DETAIL,Sustainable Environment,Crematorium,CRM00,Employee wellbeing/Other employee expenses,0021,17.50,Team Prevent UK Ltd,148151,06/03/2014,10198650
INSERTED DETAIL,Resources & Corporate Governance,Apprenticeship Scheme,CSS25,Employee wellbeing/Other employee expenses,0021,17.50,Team Prevent UK Ltd,148151,06/03/2014,10198650
INSERTED DETAIL,Resources & Corporate Governance ,Electoral Registration,ERG00,Employee wellbeing/Other employee expenses,0021,17.50,Team Prevent UK Ltd,148151,06/03/2014,10198650
INSERTED DETAIL,Resources & Corporate Governance ,General Administration,WAD00,Employee wellbeing/Other employee expenses,0021,125.00,Team Prevent UK Ltd,148151,06/03/2014,10198650
INSERTED DETAIL,Resources & Corporate Governance ,Grounds Maintenance,WGM00,Employee wellbeing/Other employee expenses,0021,40.00,Team Prevent UK Ltd,148151,06/03/2014,10198650
INSERTED DETAIL,Resources & Corporate Governance ,Street Cleansing,WSC00,Employee wellbeing/Other employee expenses,0021,85.00,Team Prevent UK Ltd,148151,06/03/2014,10198650
INSERTED DETAIL,Resources & Corporate Governance ,Domestic Waste Collection,WWC00,Employee wellbeing/Other employee expenses,0021,97.50,Team Prevent UK Ltd,148151,06/03/2014,10198650
INSERTED DETAIL,Resources & Corporate Governance ,Grounds Maintenance,WGM00,Materials,0303,427.56,The Rock Solid Concrete Company,148173,13/03/2014,10199067
INSERTED DETAIL,Resources & Corporate Governance ,TREE WORKS,WGM01,Training fees,0011,496.00,Park Hill Training Ltd,148323,06/03/2014,10198167
INSERTED DETAIL,Resources & Corporate Governance ,TREE WORKS,WGM01,Training fees,0011,-496.00,Park Hill Training Ltd,148323,06/03/2014,10198641
INSERTED DETAIL,Resources & Corporate Governance ,TREE WORKS,WGM01,Training fees,0011,467.00,Park Hill Training Ltd,148323,06/03/2014,10198816
INSERTED DETAIL,Capital Programme ,Pettiver Crescent,PCH00,Capital Contract Payments,5000,1599.38,"Gotch, Saunders & Surridge LLP , t/a GSS Architecture",148432,06/03/2014,10198619
INSERTED DETAIL,Sustainable Inclusive Communities,Woodside Park,TVR00,Development Activities,0450,1000.00,"Gotch, Saunders & Surridge LLP , t/a GSS Architecture",148432,06/03/2014,10198748
INSERTED DETAIL,Capital Programme ,Pettiver Crescent,PCH00,Capital Contract Payments,5000,1599.37,"Gotch, Saunders & Surridge LLP , t/a GSS Architecture",148432,27/03/2014,10199903
INSERTED DETAIL,Capital Programme ,Open Spaces Refurbishment,LEI08,Capital Contract Payments,5000,858.79,J P Landscapes & Construction Ltd,148502,27/03/2014,10199963
INSERTED DETAIL,Resources & Corporate Governance,Housing Maintenance,WHM00,External Contractor & Operator,0742,7155.00,Garforth Scaffolding Ltd,148530,27/03/2014,10198972
INSERTED DETAIL,Resources & Corporate Governance ,Central Telephone Service,TEL00,Telephone Expenses,0371,5604.62,Intrinsic Technology Ltd,148620,13/03/2014,10199174
INSERTED DETAIL,Resources & Corporate Governance ,IT Procurement,CMP00,IT Capital Expenditure,5025,417.24,Intrinsic Technology Ltd,148620,27/03/2014,10199523
INSERTED DETAIL,Capital Programme ,Open Spaces Refurbishment,LEI08,Capital Contract Payments,5000,756.00,Kova Landscape Ltd,148635,27/03/2014,10200044
INSERTED DETAIL,Capital Programme ,Open Spaces Refurbishment,LEI08,Capital Contract Payments,5000,805.00,Kova Landscape Ltd,148635,27/03/2014,10200045
INSERTED DETAIL,Economy Development & Culture,Economic Development General,ECD00,Consultancy Costs,0740,460.00,Deloitte,148797,13/03/2014,10199003
INSERTED DETAIL,Economy Development & Culture,Economic Development General,ECD00,Consultancy Costs,0740,1465.00,Deloitte,148797,13/03/2014,10199004
INSERTED DETAIL,Resources & Corporate Governance ,Domestic Waste Collection,WWC00,Vehicle Repair and Maintenance,0200,1242.41,Vicary Plant Spares Limited,148824,27/03/2014,10199008
INSERTED DETAIL,Resources & Corporate Governance ,Domestic Waste Collection,WWC00,Vehicle Repair and Maintenance,0200,-850.00,Vicary Plant Spares Limited,148824,27/03/2014,10199512
INSERTED DETAIL,Housing Revenue Account ,Gas Heating Systems,UMR01,R&M External Contractors,0100,866.92,Robert Heath Heating Ltd,148858,13/03/2014,10199053
INSERTED DETAIL,Housing Revenue Account ,Gas Heating Systems,UMR01,R&M External Contractors,0100,26563.00,Robert Heath Heating Ltd,148858,13/03/2014,10199056
INSERTED DETAIL,Housing Revenue Account ,Unplanned Maintenance and Repair,UMR00,R&M External Contractors,0100,552.90,Robert Heath Heating Ltd,148858,13/03/2014,10199060
INSERTED DETAIL,Housing Revenue Account ,Gas Heating Systems,UMR01,R&M External Contractors,0100,202.03,Robert Heath Heating Ltd,148858,13/03/2014,10199060
INSERTED DETAIL,Housing Revenue Account ,Repairs and Maintenance - Void works,UMR09,R&M External Contractors,0100,1047.55,Robert Heath Heating Ltd,148858,13/03/2014,10199060
INSERTED DETAIL,Economy Development & Culture,The Benn Hall,BHL00,Purchases for Resale,0305,1352.83,Matthew Clark Wholesale Ltd,148975,06/03/2014,10198495
INSERTED DETAIL,Economy Development & Culture,The Benn Hall,BHL00,Purchases for Resale,0305,630.23,Matthew Clark Wholesale Ltd,148975,20/03/2014,10199335
INSERTED DETAIL,Economy Development & Culture,The Benn Hall,BHL00,Purchases for Resale,0305,988.59,Matthew Clark Wholesale Ltd,148975,27/03/2014,10200088
INSERTED DETAIL,,Balance Sheet,BS,Insurance Recoverable,9232,100.00,CAA Ltd,149050,13/03/2014,10198651
INSERTED DETAIL,Resources & Corporate Governance,Housing Maintenance,WHM00,External Contractor & Operator,0742,526.00,PJR Services,149062,13/03/2014,10198733
INSERTED DETAIL,Resources & Corporate Governance,Housing Maintenance,WHM00,External Contractor & Operator,0742,526.00,PJR Services,149062,20/03/2014,10199162
INSERTED DETAIL,Resources & Corporate Governance,Housing Maintenance,WHM00,External Contractor & Operator,0742,526.00,PJR Services,149062,20/03/2014,10199508
INSERTED DETAIL,Housing Revenue Account ,Repairs and Maintenance - Void works,UMR09,R&M External Contractors,0100,920.00,Elite Surveyors Ltd,149107,06/03/2014,10198258
INSERTED DETAIL,Resources & Corporate Governance ,Public Services Network,PSN00,Consultancy Costs,0740,1700.00,ICOMM Technologies Ltd,149115,27/03/2014,10199349
INSERTED DETAIL,Capital Programme ,Crematorium Project,BUR04,IT Capital Expenditure,5025,1125.09,ICOMM Technologies Ltd,149115,27/03/2014,10199526
INSERTED DETAIL,Sustainable Environment ,Cemeteries General,CEM00,R&M External Contractors,0100,4087.50,Memsafe Ltd,149133,20/03/2014,10199462
INSERTED DETAIL,Resources & Corporate Governance,Corporate Property R&M,CPA01,R&M External Contractors,0100,990.00,Utility Partnership Ltd,149141,27/03/2014,10199568
INSERTED DETAIL,Resources & Corporate Governance,Corporate Property R&M,CPA01,R&M External Contractors,0100,990.00,Utility Partnership Ltd,149141,27/03/2014,10199569
INSERTED DETAIL,Resources & Corporate Governance,Corporate Property R&M,CPA01,R&M External Contractors,0100,495.00,Utility Partnership Ltd,149141,27/03/2014,10200042
INSERTED DETAIL,Capital Programme ,Cattle Market Site,CMS00,Capital Contract Payments,5000,290289.09,Kier Construction Ltd T/A Kier Construction Central,149148,13/03/2014,10199209
INSERTED DETAIL,Resources & Corporate Governance ,Town Hall,OFF00,Contract Cleaning,0170,4195.83,Superclean Services Wothorpe,149153,06/03/2014,10198614
INSERTED DETAIL,Resources & Corporate Governance ,WSU Depot,WDP00,Contract Cleaning,0170,395.83,Superclean Services Wothorpe,149153,06/03/2014,10198614
INSERTED DETAIL,Resources & Corporate Governance ,Grounds Maintenance,WGM00,Contract Cleaning,0170,200.00,Superclean Services Wothorpe,149153,06/03/2014,10198614
INSERTED DETAIL,Housing Revenue Account ,Sheltered Housing,AGP00,Contract Cleaning,0170,11850.58,Superclean Services Wothorpe,149153,20/03/2014,10198642
INSERTED DETAIL,Sustainable Inclusive Communities,Housing Options Team,HOT00,Contract Cleaning,0170,112.51,Superclean Services Wothorpe,149153,20/03/2014,10198642
INSERTED DETAIL,Housing Revenue Account ,Estate Management,MAN22,Contract Cleaning,0170,2552.47,Superclean Services Wothorpe,149153,20/03/2014,10198642
INSERTED DETAIL,Housing Revenue Account ,Multi-Storey Flats,MSF00,Contract Cleaning,0170,1434.45,Superclean Services Wothorpe,149153,20/03/2014,10198642
INSERTED DETAIL,Economy Development & Culture,Economic Development General,ECD00,Other,0763,550.22,Coton Forward,149194,13/03/2014,10199075
INSERTED DETAIL,Economy Development & Culture,Queens Diamond Jubilee Centre,QDJ00,External Contractor & Operator,0742,132866.96,GLL ( Greenwich Leisure Ltd),149240,20/03/2014,10199554
INSERTED DETAIL,Economy Development & Culture,The Benn Hall,BHL00,Special Events/Activities,0447,700.00,Gag Reflex Ltd,149264,13/03/2014,10198967
INSERTED DETAIL,Capital Programme ,Pettiver Crescent,PCH00,Capital Contract Payments,5000,186110.64,Wates Construction Ltd,149267,13/03/2014,10198961
INSERTED DETAIL,Capital Programme ,Fire Risk Prevention Works,HCE18,Capital Contract Payments,5000,1076.92,Arden Health and Safety,149273,06/03/2014,10198872
INSERTED DETAIL,Resources & Corporate Governance ,Garage Internal,WVR01,Materials,0303,1127.85,Grenke Leasing Ltd,149293,27/03/2014,10200051
INSERTED DETAIL,Resources & Corporate Governance,Housing Maintenance,WHM00,External Contractor & Operator,0742,1250.00,H G Leslie & Son,149335,20/03/2014,10199248
INSERTED DETAIL,Economy Development & Culture,The Benn Hall,BHL00,Events Tickets - Standard Rated,1404,1020.60,Cecil Benjamin,149392,13/03/2014,10198969
INSERTED DETAIL,Resources & Corporate Governance,Housing Maintenance,WHM00,External Contractor & Operator,0742,1245.00,CSC Forecourt Services Ltd,149405,27/03/2014,10199163
INSERTED DETAIL,Resources & Corporate Governance,Housing Maintenance,WHM00,External Contractor & Operator,0742,1250.00,CSC Forecourt Services Ltd,149405,27/03/2014,10199164
INSERTED DETAIL,Sustainable Environment,Regulatory Services,REG00,External Contractor & Operator,0742,2047.95,Les Jackson t/a LJL,149468,13/03/2014,10199034
INSERTED DETAIL,Sustainable Environment ,Parks,PKS00,External Contractor & Operator,0742,937.50,Kev Munday,149487,27/03/2014,10199002
INSERTED DETAIL,Sustainable Environment ,Land Drainage General,LDR00,External Contractor & Operator,0742,1579.25,MPS Builders Merchant Ltd,149572,27/03/2014,10199748
INSERTED DETAIL,Resources & Corporate Governance ,Town Hall,OFF00,New Equipment,0300,4584.00,Micronics Ltd,149575,10/03/2014,10198833
INSERTED DETAIL,Sustainable Environment ,Head of Environmental Services,ENV00,Training fees,0011,1495.00,Phoenix Health & Safety,149576,06/03/2014,10198655
INSERTED DETAIL,Economy Development & Culture,Economic Development General,ECD00,Borough Local Plan,0452,2529.20,ARC4 Ltd,149590,06/03/2014,10198459
INSERTED DETAIL,Resources & Corporate Governance,Housing Maintenance,WHM00,Materials,0303,3455.04,SBP Ltd t/a Permadoor,149595,20/03/2014,10198376
INSERTED DETAIL,Resources & Corporate Governance,Housing Maintenance,WHM00,Materials,0303,452.98,SBP Ltd t/a Permadoor,149595,20/03/2014,10198617
INSERTED DETAIL,Resources & Corporate Governance ,Grounds Maintenance,WGM00,Materials,0303,2724.30,Aspli Safety Limited,149611,27/03/2014,10199379
INSERTED DETAIL,Resources & Corporate Governance ,Civic Responsibilities,CIV00,Special Events/Activities,0447,600.00,Harbury Marquee Hire,149613,20/03/2014,10199389
INSERTED DETAIL,Sustainable Environment ,Head of Environmental Services,ENV00,Training fees,0011,2200.00,Hoarelea,149616,13/03/2014,10198869
INSERTED DETAIL,Sustainable Environment ,Cemeteries General,CEM00,Maintenance of Equipment,0301,5400.00,Vivedia Ltd,149624,13/03/2014,10198983
INSERTED DETAIL,Capital Programme ,Crematorium Project,BUR04,IT Capital Expenditure,5025,835.00,Westbase Technology Ltd,149625,20/03/2014,10199327
INSERTED DETAIL,Resources & Corporate Governance ,Customer and Information Strategy,CIS10,New Equipment,0300,513.00,GPG No 5 Ltd,149626,20/03/2014,10199064
INSERTED DETAIL,Resources & Corporate Governance ,Safety and Resilience,EPL00,Training fees,0011,1125.00,Health & Safety Laboratory,149643,20/03/2014,10199494
INSERTED DETAIL,Housing Revenue Account ,Supervision and Management General,MAN00,Movement Incentives,0454,500.00,REDACTED PERSONAL DATA,149647,27/03/2014,10199586
INSERTED DETAIL,Sustainable Environment ,Parks,PKS00,External Contractor & Operator,0742,1510.32,Darfen Durafencing,149651,27/03/2014,10199597
INSERTED DETAIL,Capital Programme ,Vehicle Workshop Extension,VWE00,Capital Contract Payments,5000,1082.40,Alltank,149652,20/03/2014,10199579
detail,Economy Development & Culture,The Benn Hall,BHL00,Special Events/Activities,0447,700.00,Comedy Club 4 Kids Ltd,149665,27/03/2014,10200029
,Resources & Corporate Governance ,Legal Services,DEM20,Course Fees,0011,635.00,CILEX,,10/03/2014,31149
,Resources & Corporate Governance ,General Financial Services,GFS00,Payment Card Costs,0444,989.17,Capita ,,28/03/2014,31100
